Cogmind - Beta 11.1 @@@ ROGUE MODE // 2022.05.28 @ 22:08:36 Player: leiavoia Result: Destroyed by Alpha 7 with Backup Laser VII Performance ------------- Evolutions (8) 4000 Regions Visited (31) 6200 Robots Destroyed (721) 3605 Value Destroyed (37158) 37158 Prototype IDs (84) 1680 Alien Tech Used (11) 2200 Bonus (30868) 30868 TOTAL SCORE: 85711 Bonus ------- Triggered High Security 1500 High Alert Combat Kills 15392 Follower Combat Kills 3638 Network Hubs Disabled 200 Met Imprinter 300 Met Zhirov 300 Met Warlord at Base 500 MAIN.C Attacked Warlord 500 Built Enhanced Grunts 300 Met R17 at Cetus 500 Used Core Reset Matrix 3000 Met R17 at Research 2000 Met Warlord at Research 2000 Scanned by Researcher 1000 Acquired SGEMP 2000 Friendly Fire -2262 Cogmind --------- Core Integrity 0/1450 Matter 129/300 Energy 446/700 System Corruption 31% Temperature Cool (43) Movement Core (250) Ox4 Location -2/Section 7 Parts ------- > --- POWER (2) -------- (None) > --- PROPULSION (8) --- (None) > --- UTILITY (9) ------ Experimental Energy Well Advanced Sensor Array > --- WEAPON (4) ------- Core Cannon > --- INVENTORY (9) ---- High-capacity Matter Pod (200) Core Stripper Peak State ------------ > --- POWER ------------ Reinforced Antimatter Reactor Quantum Reactor > --- PROPULSION ------- Armored Heavy Treads High-density Centrium Heavy Treads High-density Centrium Heavy Treads Experimental Biometal Medium Treads Experimental Biometal Medium Treads > --- UTILITY ---------- Coolant Network Huge Storage Unit Heavy Regenerative Plating SHELL Armor Experimental Force Field > --- WEAPON ----------- Long-range Phase Cannon Enhanced Nova Cannon Core Stripper > --- INVENTORY -------- Vortex Chain Reactor Advanced Heavy Siege Treads Experimental Cooling System Experimental Energy Well High-capacity Matter Pod Advanced Sensor Array Beam Splitter Long-range Tractor Beam Transdimensional Reconstructor Transdimensional Reconstructor Subatomic Replicator Compact HERF Cannon Core Cannon Helical Railgun Multirail Multirail Hypervelocity Multirail Graviton Cannon Sigix Terminator SGEMP Prototype [Rating: 238] Favorites ----------- Power Reinforced Fission Core Engine Improved Ion Engine Power Core Reinforced Fission Core Reactor Light Antimatter Reactor Propulsion Armored Treads Treads Armored Treads Leg Myomer Leg Wheel Armored Huge Wheel Hover Unit Improved Linear Gravjet Flight Unit Field Propulsion Array Utility Huge Storage Unit Device Advanced Heat Sink Storage Huge Storage Unit Processor Advanced Targeting Computer Hackware Improved System Shield Protection Improved Medium Armor Plating Artifact Phase Armor Weapon Quantum Rifle Energy Gun Quantum Rifle Energy Cannon Heavy Particle Cannon Ballistic Gun Enhanced Autogun Ballistic Cannon Bore Cannon Launcher Advanced EMP Blaster Special Weapon Molecular Deconstructor Impact Weapon Heavy Flail Slashing Weapon Makeshift Sword Piercing Weapon Heavy Pick Special Melee Weapon Dirty Datajack Build | -11 -10 -10 -9 -9 -8 -8 -7 -7 -7 -7 -6 -6 -6 -6 -6 -6 -5 -5 -5 -5 -4 -4 -4 -4 -4 -3 -3 -3 -2 -2 -2 ------- Run | Scr Mat Min Mat Min Mat Sto Fac Low Low Zio Pro Fac Ext Cet Arc Hub Fac Upp Upp War Pro Fac Upp Upp Zhi Pro Res Qua Res Tes Sec Slots Evolved 16 | . . . 2 . 2 . 2 . . . . 2 . . . . 2 . . . . 2 . . . . 2 . 2 . . Power 1 | . . . . . . . . . . . . . . . . . . . . . . 1 . . . . . . . . . Propulsion 6 | . . . 1 . . . 1 . . . . . . . . . 2 . . . . . . . . . 2 . . . . Utility 7 | . . . 1 . 2 . . . . . . 2 . . . . . . . . . 1 . . . . . . 1 . . Weapon 2 | . . . . . . . 1 . . . . . . . . . . . . . . . . . . . . . 1 . . Parts Attached 797 | 2 10 8 42 3 22 25 7 8 14 6 20 52 31 9 4 12 65 15 3 24 15 68 17 2 12 25 63 65 28 49 71 Power 46 | . 2 . 3 . 2 3 . . 1 1 2 3 . . . . 1 1 . 1 . 2 2 . 1 . 7 . 4 2 8 Engine 16 | . 2 . 3 . 2 2 . . 1 1 2 2 . . . . . . . . . . 1 . . . . . . . . Core 6 | . . . . . . 1 . . . . . . . . . . . 1 . 1 . . . . 1 . 2 . . . . Reactor 24 | . . . . . . . . . . . . 1 . . . . 1 . . . . 2 1 . . . 5 . 4 2 8 Propulsion 156 | . 4 4 7 . 4 4 2 . . . 6 9 16 2 1 . 7 3 1 6 1 20 7 . 6 7 19 3 3 8 6 Treads 92 | . 1 1 7 . 4 4 1 . . . 6 1 11 2 1 . 7 3 1 2 . 5 4 . . 6 5 3 3 8 6 Leg 34 | . 1 . . . . . . . . . . 2 5 . . . . . . 4 1 10 2 . 6 1 2 . . . . Wheel 19 | . 2 3 . . . . 1 . . . . 6 . . . . . . . . . 5 1 . . . 1 . . . . Hover 10 | . . . . . . . . . . . . . . . . . . . . . . . . . . . 10 . . . . Flight 1 | . . . . . . . . . . . . . . . . . . . . . . . . . . . 1 . . . . Utility 331 | 1 2 1 10 2 6 7 3 1 7 . 7 17 8 4 3 6 36 6 . 13 7 21 5 2 3 9 32 50 14 20 28 Device 187 | 1 1 1 3 1 2 2 1 . 4 . 5 8 3 1 . 1 19 4 . 5 4 13 3 1 2 6 15 31 9 14 27 Storage 15 | . 1 . 1 . . . . . . . . 1 1 . . . . 1 . 1 1 . . . . 1 1 3 . 2 1 Processor 16 | . . . . . . . . . . . . 4 . . . . . . . 2 . 1 1 . . 1 5 . 1 1 . Hackware 10 | . . . . . . . . . . . . . . . 3 . 2 . . . . 2 . . . . 3 . . . . Protection 101 | . . . 6 1 4 5 2 1 3 . 2 4 4 3 . 5 15 1 . 5 2 5 1 1 1 1 8 14 4 3 . Artifact 2 | . . . . . . . . . . . . . . . . . . . . . . . . . . . . 2 . . . Weapon 264 | 1 2 3 22 1 10 11 2 7 6 5 5 23 7 3 . 6 21 5 2 4 7 25 3 . 2 9 5 12 7 19 29 Energy Gun 32 | . . . 1 1 1 . 1 . . . 1 4 3 . . . 3 3 . 2 2 6 . . . 2 . . . 1 1 Energy Cannon 56 | . . 1 13 . 3 2 . 1 . 1 1 . . . . . 1 . . . . 5 . . . 1 5 4 3 3 12 Ballistic Gun 57 | 1 1 2 1 . 1 4 1 . . . 1 4 2 2 . 2 2 1 . . 1 3 . . . 2 . 6 3 8 9 Ballistic Cannon 43 | . 1 . . . . 2 . 2 3 3 . 7 2 . . 1 5 1 1 1 1 3 2 . 1 . . 1 1 3 2 Launcher 46 | . . . 7 . 5 2 . 1 3 1 2 4 . . . 1 10 . . . 2 4 . . . . . . . 3 1 Special Weapon 4 | . . . . . . . . . . . . . . . . . . . . 1 1 2 . . . . . . . . . Impact Weapon 17 | . . . . . . 1 . 3 . . . 4 . 1 . 2 . . . . . . . . . . . 1 . 1 4 Slashing Weapon 1 | . . . . . . . . . . . . . . . . . . . 1 . . . . . . . . . . . . Piercing Weapon 3 | . . . . . . . . . . . . . . . . . . . . . . . . . 1 2 . . . . . Special Melee Weapon 5 | . . . . . . . . . . . . . . . . . . . . . . 2 1 . . 2 . . . . . Unidentified Prototypes 51 | . . . . . . 3 . . . 1 . 6 . 3 . . 1 . . 7 . . . . 1 . 1 5 4 11 8 Corrupted Parts 8 | . . . . . . . . . . 1 . . . . . 1 . . 1 . . 3 . . . 1 . . . . 1 System Corruption 42 | . . . . . . . . . . 6 . . . . . 6 . . 1 . . 22 . . . 5 . . . . 2 Parts Lost 146 | . 1 1 1 . 2 . . . 2 . 6 4 5 . . . 15 1 1 . 2 36 6 1 . 21 5 3 3 3 27 Power 13 | . . . . . . . . . 1 . . . . . . . 1 . . . . 2 1 . . 2 . . . 2 4 Propulsion 54 | . . . 1 . 1 . . . . . 3 2 3 . . . 3 . 1 . . 18 2 1 . 6 4 . 2 . 7 Utility 43 | . 1 . . . 1 . . . 1 . 2 1 2 . . . 5 1 . . 1 8 3 . . 6 1 2 . . 8 Weapon 36 | . . 1 . . . . . . . . 1 1 . . . . 6 . . . 1 8 . . . 7 . 1 1 1 8 Highest Loss Streak 23 | . 1 1 1 . 2 . . . 1 . 2 1 2 . . . 12 1 1 . 1 11 6 1 . 8 4 2 3 1 23 To Critical Strikes 1 | . . . . . . . . . . . . . . . . . . . . . . . . . . . . . . . 1 Average Slot Usage (%) 90 | . 99 100 99 100 100 96 91 92 91 91 96 95 99 92 86 85 79 86 86 93 94 88 87 93 81 85 88 78 78 67 60 Engine 5 | . 14 14 10 11 9 9 7 7 7 7 7 5 6 6 6 6 4 . . . . . 3 5 4 . . . . . . Core 1 | . . . . . . . . . . . . . . . . . . 5 5 5 5 2 . . . 1 1 4 2 . . Reactor 1 | . . . . . . . . . . . . . . . . . . . . . . 4 4 5 5 1 6 4 5 8 7 Treads 19 | . 8 14 31 33 27 26 15 15 15 15 23 18 23 19 13 13 17 25 27 25 10 4 23 30 18 10 6 19 16 18 16 Leg 2 | . 8 . . . . . . . . . . . . . . . . . . 5 23 19 2 . 8 19 7 . . . . Wheel 2 | . 11 14 1 . . . 6 7 7 7 2 3 1 . . . . . . . . 4 4 . . . 1 . . . . Device 13 | . 13 14 11 11 18 20 20 15 13 15 14 12 10 13 11 6 8 19 17 12 8 7 13 10 11 19 13 18 16 6 7 Storage 7 | . 14 14 11 11 9 9 7 7 7 7 7 6 6 6 6 6 5 6 5 5 5 5 5 5 5 7 4 4 8 4 3 Processor 4 | . . . . . . . . . . . . 10 13 11 6 6 5 5 5 8 12 9 6 10 10 5 6 4 4 3 . Hackware 1 | . . . . . . . . . . . . . . . 4 17 5 . . . . 9 10 10 10 5 8 . . . . Protection 9 | . . . 10 11 18 12 9 15 15 15 15 15 15 14 16 8 11 3 5 8 11 4 . 5 2 . 2 6 4 7 7 Energy Gun 3 | . 2 . . 11 10 . 7 1 . . 2 4 5 13 13 13 2 14 14 9 1 4 1 . . 1 . . . . . Energy Cannon 5 | . . 13 20 11 3 1 . 5 7 6 2 . . . . . . . . . . 3 5 5 . . 10 8 8 8 7 Ballistic Gun 3 | . 11 4 . . 1 14 15 3 . . 1 7 2 5 6 2 5 . . . . 1 . . . 2 1 4 5 4 5 Ballistic Cannon 4 | . 13 9 . . . 1 . 5 11 8 15 6 10 . . 1 3 1 . 5 10 1 4 5 . . . . 1 1 . Naked Turns 7 | . . . . . . . . . . . . . . . . . . . . . . . . . . . . . . . 7 Heaviest Build 239 | 14 50 52 108 107 120 119 118 128 129 136 142 144 130 135 135 133 140 141 145 163 173 177 151 134 142 150 178 184 185 226 239 Greatest Support 320 | 20 20 16 66 60 60 60 40 28 28 28 89 89 100 160 160 160 240 136 137 137 125 150 163 163 171 171 266 250 270 320 320 Greatest Overweight (x) 15 | . 4 5 9 1 1 1 4 4 4 4 5 7 8 1 . . 1 1 1 2 1 15 12 . 1 1 13 . . . 6 Average Overweight (x) 1 | . 2 3 1 1 1 1 3 4 4 4 2 1 1 . . . . . 1 1 1 3 6 . . . 1 . . . . Largest Inventory Capacity 29 | 8 20 20 25 25 25 25 25 25 25 25 25 25 25 25 25 25 25 25 25 25 25 25 25 25 25 25 25 25 25 25 29 Average Capacity 24 | 8 17 20 24 25 25 25 25 25 25 25 25 25 25 25 25 25 25 25 25 25 25 25 25 25 25 25 25 25 25 25 24 Most Carried 29 | 8 20 20 25 25 25 25 25 25 25 25 25 25 25 25 25 25 25 25 25 25 25 25 22 25 25 25 25 25 25 25 29 Average Carried 23 | 6 15 19 24 25 24 24 24 24 24 24 23 24 24 24 24 24 23 21 24 24 24 23 18 24 24 20 24 24 24 24 22 Final Capacity 25 | 8 20 20 25 25 25 25 25 25 25 25 25 25 25 25 25 25 25 25 25 25 25 25 25 25 25 25 25 25 25 25 9 Final Carried 25 | 8 20 20 25 25 25 25 25 25 25 25 22 25 25 25 25 23 16 25 25 25 24 23 22 25 25 20 25 25 25 25 3 Class Distribution -------------------- 26% | Scavenger-Mutant 24% | Mutant 15% | Tank 12% | Scavenger-Gunner 4% | Scavenger-Tank 3% | Commander-Mutant 3% | Scavenger-Skirmisher Dominant Class ---------------- Mutant | -10/Materials Mutant | -10/Mines Mutant | -9/Materials Scavenger-Mutant | -9/Mines Scavenger-Mutant | -8/Materials Mutant | -8/Storage Tank | -7/Factory Mutant | -7/Lower Caves Tank | -7/Lower Caves Mutant | -7/Zion Tank | -6/Proximity Caves Tank | -6/Factory Commander-Tank | -6/Extension Commander-Tank | -6/Cetus Commander-Mutant | -6/Archives Hacker-Mutant | -6/Hub_04(d) Scavenger-Tank | -5/Factory Scavenger-Gunner | -5/Upper Caves Scavenger-Gunner | -5/Upper Caves Scavenger-Mutant | -5/Warlord Scavenger-Gunner | -4/Proximity Caves Scavenger-Gunner | -4/Factory Scavenger-Mutant | -4/Upper Caves Scavenger-Gunner | -4/Upper Caves Scavenger-Mutant | -4/Zhirov Scavenger-Mutant | -3/Proximity Caves Scavenger-Mutant | -3/Research Scavenger-Mutant | -3/Quarantine Scavenger-Mutant | -2/Research Gunner | -2/Testing Tank | -2/Section 7 Resources | -11 -10 -10 -9 -9 -8 -8 -7 -7 -7 -7 -6 -6 -6 -6 -6 -6 -5 -5 -5 -5 -4 -4 -4 -4 -4 -3 -3 -3 -2 -2 -2 ----------- Run | Scr Mat Min Mat Min Mat Sto Fac Low Low Zio Pro Fac Ext Cet Arc Hub Fac Upp Upp War Pro Fac Upp Upp Zhi Pro Res Qua Res Tes Sec Matter Collected 21369 | 211 882 183 608 149 468 829 298 295 400 60 740 2121 937 175 69 348 2234 386 198 280 543 1755 525 184 151 351 614 1358 614 1600 1803 Remotely 6585 | . . . . . . . . . 276 . . 391 173 . . . 1885 57 . 260 . 1321 . . . . . 633 259 268 1062 Salvage Created 35890 | 105 604 509 2616 310 1017 1389 513 253 476 . 856 2210 1147 . 355 864 2985 773 589 . 199 3704 429 126 441 712 108 2948 1238 3777 4637 Parts 1541 | 8 40 29 162 19 48 95 24 4 14 . 30 95 41 . 32 50 121 19 28 . 13 153 14 4 4 31 6 154 49 137 117 Haulers Intercepted 20 | . 2 . 5 . 2 4 . . . . . 2 . . . . . . . . . 3 . . . . 1 . 1 . . Recyclers Shooed 19 | . . 1 1 . 1 . . . . . . 3 5 . . . 3 . . . . 5 . . . . . . . . . Parts Field Recycled . | . . . . . . . . . . . . . . . . . . . . . . . . . . . . . . . . Retrieved Matter . | . . . . . . . . . . . . . . . . . . . . . . . . . . . . . . . . Parts Self-Destructed 151 | . . . . . . . . 6 11 . 31 . . . . . . 17 32 . 13 . 14 4 . 23 . . . . . Prevented 3 | . . . . . . . . . 3 . . . . . . . . . . . . . . . . . . . . . . Kills | -11 -10 -10 -9 -9 -8 -8 -7 -7 -7 -7 -6 -6 -6 -6 -6 -6 -5 -5 -5 -5 -4 -4 -4 -4 -4 -3 -3 -3 -2 -2 -2 ------- Run | Scr Mat Min Mat Min Mat Sto Fac Low Low Zio Pro Fac Ext Cet Arc Hub Fac Upp Upp War Pro Fac Upp Upp Zhi Pro Res Qua Res Tes Sec Combat Hostiles Destroyed 592 | . 15 7 50 8 23 32 9 5 15 . 17 25 19 . . 14 70 10 9 . 8 50 6 3 . 13 . 38 17 53 76 Melee 10 | . . . 1 . . . . . . . . . . . . . . . . . . . . . . 9 . . . . . Guns 193 | . 5 . 1 4 4 22 9 . . . . 16 5 . . 9 20 10 6 . 3 12 2 . . 2 . 16 7 9 31 Cannons 223 | . 10 7 36 4 6 2 . 2 9 . 10 8 14 . . 1 9 . 2 . 3 23 4 3 . . . 17 8 29 16 AOE 144 | . . . 12 . 13 8 . 3 6 . 6 1 . . . 4 41 . . . 1 14 . . . 2 . 1 . 12 20 Classes Destroyed 29 | 2 6 1 4 . 1 . . 1 . . 2 1 . . . 1 2 . . . . 2 1 . . . . 1 2 2 . Worker 28 | . . 6 4 1 1 2 . . . . . 2 . . . 2 1 . . . . 3 . . . . . . . 5 1 Builder 23 | . 1 . 6 . . . 1 . . . . 2 . . . . 1 . . . . 9 . . . . . . . 2 1 Tunneler 8 | 2 . 1 . 1 . . . . . . . 1 1 . . . . . . . . 1 . . . . 1 . . . . Hauler 20 | . 2 . 5 . 2 4 . . . . . 2 . . . . . . . . . 3 . . . . 1 . 1 . . Recycler 20 | 1 . 3 1 . 2 . . . . . . 5 1 . . . 2 . . . . 5 . . . . . . . . . Carrier 2 | . . . . . . . . . . . . . . . . . 1 . . . . . . . . . . . . . 1 Mechanic 15 | . . . . . . . . . . . . 1 . . . . 3 . . . . 3 . . . . . . . 2 6 Operator 14 | . 1 . . . . . . . . . . . 1 . 9 1 . . . . . 1 . . . . . . . 1 . Watcher 16 | . 2 . 4 . . . . . . . . 2 . . . . 4 . . . . . . . . . . 2 1 1 . Swarmer 59 | . 3 3 . 4 4 7 . 3 3 . 5 . . . . . 8 . . . . 4 1 . . 6 . . 3 5 . Saboteur 4 | . . . . . . . . . . . . . . . . 1 . . . . . . . . . . . . . 2 1 Grunt 279 | . 12 4 37 3 12 14 5 1 10 . 5 16 10 . . 8 34 4 5 . . 27 1 . . . . 21 . 21 29 Brawler 23 | . . . 2 . . . 1 . . . 1 . . . . . 3 2 1 . . 1 1 . . . . . . 4 7 Duelist 21 | . . . 1 1 . . . . . . 2 . . . . 1 5 2 . . . . . . . . . 1 . 1 7 Protector 9 | . . . 1 . . 1 . . 1 . . . . . . . 2 . . . . . . . . . . 1 . . 3 Researcher 4 | . . . . . . . . . . . . . . . . . . . . . . . . . . . . . . 3 1 Sentry 49 | . . . 9 . 6 9 2 . 1 . . 2 6 . . 3 4 2 . . . . 1 1 . 1 . 1 . . 1 Demolisher 3 | . . . . . . . . . . . . . . . . . . . . . . . . . . . . . 3 . . Specialist 6 | . . . . . . . . . . . . . . . . . 2 . 1 . . 3 . . . . . . . . . Hunter 45 | . . . . . 1 1 1 . . . 2 2 1 . . . 6 . . . 2 6 2 . . 4 . 2 . 8 7 Programmer 69 | . . . . . . . . . . . 1 4 1 . . 1 6 . 2 . 5 6 . 2 . 2 . 11 5 9 14 Heavy 1 | . . . . . . . . . . . . . . . . . . . . . . 1 . . . . . . . . . Behemoth 6 | . . . . . . . . . . . 1 1 1 . . . . . . . 1 1 . . . . . . . . 1 Enhanced Grunt 1 | . . . . . . . . . . . . . . . . 1 . . . . . . . . . . . . . . . Striker 7 | . . . . . . . . . . . . . . . . . . . . . . 1 . . . . . . 4 2 . Executioner 7 | . . . . . . . . . . . . . . . . . . . . . . . . . . . . . 2 . 5 Alpha 7 3 | . . . . . . . . . . . . . . . . . . . . . . . . . . . . 1 . 1 1 Fortress 1 | . . . . . . . . . . . . . . . . . . . . . . . . . . . . . . 1 . Decomposer 1 | . . . . . . . . . . . . . . . . . . . . . . . 1 . . . . . . . . Samaritan 4 | . . . . . . . . . . . . . . . . . . . . . . . 2 . . 2 . . . . . Thug 4 | . . . . 1 . . . 2 . . 1 . . . . . . . . . . . . . . . . . . . . Savage 1 | . . . . . . . . . . . . . . . . . . . 1 . . . . . . . . . . . . Butcher 1 | . . . . . . . . . . . . . 1 . . . . . . . . . . . . . . . . . . Mutant 1 | . . . . . . . . 1 . . . . . . . . . . . . . . . . . . . . . . . Best Kill Streak 37 | 1 8 3 8 4 5 10 3 3 9 . 4 6 6 . 3 5 13 4 4 . 2 37 2 2 . 3 1 8 9 25 28 Combat Bots Only 21 | . 7 2 8 4 5 10 3 3 9 . 4 5 6 . . 3 11 4 4 . 2 13 2 2 . 3 . 8 9 12 21 Max Kills in Single Turn 26 | 1 2 1 5 1 4 3 1 1 3 . 2 2 2 . 1 2 4 2 1 . 1 5 1 1 . 2 1 1 2 2 26 Gunslinging 1 | . . . . . . 1 . . . . . . . . . 1 . . . . . . . . . . . . . . . Exploded 20 | . . . 5 . 4 3 . 1 3 . 2 1 . . . 2 3 . . . 1 4 . . . 1 . 1 . 2 20 Melee 1 | . . . 1 . . . . . . . . . . . . . . . . . . . . . . 1 . . . . . Uniques/NPCs Destroyed . | . . . . . . . . . . . . . . . . . . . . . . . . . . . . . . . . Combat | -11 -10 -10 -9 -9 -8 -8 -7 -7 -7 -7 -6 -6 -6 -6 -6 -6 -5 -5 -5 -5 -4 -4 -4 -4 -4 -3 -3 -3 -2 -2 -2 -------- Run | Scr Mat Min Mat Min Mat Sto Fac Low Low Zio Pro Fac Ext Cet Arc Hub Fac Upp Upp War Pro Fac Upp Upp Zhi Pro Res Qua Res Tes Sec Damage Taken 58102 | . 383 206 1238 196 815 983 408 433 934 . 1401 1809 1434 102 40 863 6511 387 492 . 1310 6323 1517 249 . 3000 446 4896 4278 6573 10875 Core 4537 | . 71 52 151 . 42 56 26 40 80 . 95 190 107 18 . 166 442 18 42 . 25 615 174 . . 239 80 155 493 97 1063 Absorbed by Shields 5068 | . . . 4 16 164 260 196 88 188 . 244 228 566 50 8 . . . . . 137 . . . . . . 1234 . 12 1673 Reduced by Siege Mode 1935 | . . . . . . . . . . . . . . . . . 288 . . . . . . . . . . 417 500 326 404 Redirected to Shielding 12 | . . . 12 . . . . . . . . . . . . . . . . . . . . . . . . . . . . Regen/Repaired (Parts) 7388 | . . . 131 . . 288 . . . . . . 163 . . . 149 . . . . . . . . . . . . 2985 3672 Core Remaining (%) 60 | 100 . 50 . 62 . 82 . . . . 65 . . . . 43 . . . . 47 . . . . 10 . 81 . . . Volleys Fired 1712 | 22 49 38 134 20 73 82 32 20 27 . 48 110 49 3 38 45 111 22 26 5 39 167 30 9 . 24 8 146 70 121 144 Largest 4 | 2 2 2 2 2 2 2 3 3 3 . 3 3 3 3 3 3 3 3 3 1 3 3 3 2 . 2 3 3 4 4 4 Hottest 405 | 90 85 95 150 150 150 100 111 176 176 . 194 177 200 195 195 200 177 263 263 57 147 405 245 165 . 165 312 247 350 373 360 Shots Fired 3702 | 44 87 74 239 39 103 143 96 36 54 . 112 286 129 9 77 108 242 65 62 5 64 290 52 17 . 27 12 297 188 370 375 Gun 1620 | 44 38 12 8 19 59 109 96 . . . 20 184 52 9 77 91 112 62 53 . 14 113 17 . . 19 . 111 72 67 162 Cannon 1890 | . 49 62 206 20 21 26 . 29 48 . 84 95 77 . . 13 77 3 9 4 42 160 35 17 . 8 12 186 116 279 212 Launcher 178 | . . . 25 . 23 8 . 7 6 . 8 7 . . . 4 53 . . . 3 9 . . . . . . . 24 1 Special 14 | . . . . . . . . . . . . . . . . . . . . 1 5 8 . . . . . . . . . Kinetic 1571 | 8 73 36 3 . . 120 64 16 37 . 78 208 91 3 3 24 161 5 9 4 46 72 10 11 . 16 . 111 73 120 169 Thermal 1796 | 36 14 38 211 39 80 15 32 13 11 . 26 71 38 6 74 80 28 60 53 . . 155 42 6 . 11 10 150 107 207 183 Explosive 170 | . . . 25 . 23 8 . 7 3 . 8 7 . . . 4 49 . . . 3 9 . . . . . . . 24 . Electromagnetic 95 | . . . . . . . . . 3 . . . . . . . 4 . . . . . . . . . 2 36 8 19 23 Entropic 56 | . . . . . . . . . . . . . . . . . . . . . 10 46 . . . . . . . . . Robot Hit Streak 60 | 6 12 15 14 14 18 14 10 5 13 . 14 27 19 2 10 14 29 19 20 . 9 31 8 17 . 6 3 26 18 60 57 Robot Miss Streak 10 | 3 4 4 4 1 2 2 2 4 2 . 10 7 2 4 5 4 3 2 5 . 3 5 3 1 . 5 1 4 8 7 8 Penetration Max 2 | . . . . . . . . 1 1 . 1 . . . . . 1 . . . . 1 . . . . . 1 1 2 2 Secondary Targets 12 | . . . . . . 4 1 . . . . . . . . 1 . 3 1 . . 1 . . . . . . . . 1 Max Gunslinging Chain 1 | . . . . . . 1 1 . . . . . . . . 1 . 1 1 . . 1 . . . . . . . . 1 Shots Hit Robots 2463 | 20 54 42 146 32 66 98 68 19 37 . 53 176 92 3 50 72 163 50 46 . 36 185 33 13 8 54 4 201 109 260 273 Core Hits 1430 | 6 30 21 86 13 51 63 22 14 22 . 32 80 40 1 26 40 178 21 19 . 11 141 19 4 7 23 2 76 32 171 179 Critical Kills 75 | . . . 1 . . . . . . . 7 6 . . 4 4 10 1 . . . 4 . . . . . 8 3 2 25 Critical Parts Destroyed 79 | . . . . . . . 1 1 . . 13 8 1 . 5 1 7 . . . 2 8 . . . . . 9 . . 23 Critical Strikes 197 | 2 1 . 1 2 2 . 1 1 2 . 22 17 5 . 9 5 19 2 3 . 5 14 . . 1 5 1 17 3 7 50 Burn 10 | 2 1 . . 2 2 . . . . . . . . . . . . 1 2 . . . . . . . . . . . . Meltdown 12 | . . . 1 . . . . . . . 1 . . . . . . . . . . . . . . . . 1 2 1 6 Destroy 140 | . . . . . . . 1 . . . 21 14 1 . 9 5 18 1 . . 1 8 . . . . . 16 1 1 43 Blast 22 | . . . . . . . . . 2 . . 3 4 . . . 1 . 1 . 3 2 . . . 1 . . . 4 1 Corrupt 2 | . . . . . . . . . . . . . . . . . . . . . . . . . . . 1 . . 1 . Smash 1 | . . . . . . . . 1 . . . . . . . . . . . . . . . . . . . . . . . Impale 5 | . . . . . . . . . . . . . . . . . . . . . . . . . 1 4 . . . . . Detonate 5 | . . . . . . . . . . . . . . . . . . . . . 1 4 . . . . . . . . . Melee Attacks 116 | . . . . . . 2 . 3 . . . 9 . 3 . 8 . . 3 . . 10 2 . 8 53 3 . . 5 7 Kinetic 12 | . . . . . . . . . . . . . . . . . . . . . . . . . . . . . . 5 7 Impact 25 | . . . . . . 2 . 3 . . . 9 . 3 . 8 . . . . . . . . . . . . . . . Slashing 3 | . . . . . . . . . . . . . . . . . . . 3 . . . . . . . . . . . . Piercing 76 | . . . . . . . . . . . . . . . . . . . . . . 10 2 . 8 53 3 . . . . Sneak Attacks 11 | . . . . . . . . 1 . . . . . . . . . . 1 . . 5 . . . 3 1 . . . . Combat Hostiles 6 | . . . . . . . . . . . . . . . . . . . . . . 4 . . . 2 . . . . . Follow-up Attacks 7 | . . . . . . . . . . . . . . . . . . . . . . . . . . 7 . . . . . Damage Inflicted 122205 | 248 787 783 4391 727 2568 3109 1297 905 1627 . 2022 5118 3017 162 1298 2865 11491 1604 1576 . 1643 10264 1232 676 505 1722 192 6725 4433 11868 37350 Guns 30081 | 248 250 40 34 283 854 1448 1297 . . . 386 3069 1005 162 1298 1680 2289 1531 1234 . 368 3020 275 . . 266 . 1547 1529 1532 4436 Cannons 42702 | . 537 743 3050 433 437 405 . 487 864 . 878 1550 2003 . . 306 1447 73 286 . 1062 4138 951 676 . 189 121 4969 2904 7538 6655 Explosions 46798 | . . . 1242 . 1257 1215 . 345 763 . 758 473 . . . 867 7755 . . . 213 3094 . . . . . 209 . 2603 26004 Melee 2355 | . . . . . . . . 73 . . . . . . . . . . 56 . . 11 6 . 505 1267 71 . . 166 200 Ramming 269 | . . . 65 11 20 41 . . . . . 26 9 . . 12 . . . . . 1 . . . . . . . 29 55 Kinetic 31281 | 57 675 334 . . . 1556 795 298 738 . 857 3364 2242 56 78 474 3320 104 286 . 1147 2372 504 492 . 308 . 1547 1529 3103 5045 Thermal 65122 | 191 112 449 3084 716 1291 297 502 189 126 . 407 1255 766 106 1220 1512 474 1500 1234 . 79 4709 722 184 . 147 78 3809 2631 5848 31484 Explosive 18004 | . . . 1242 . 1257 1215 . 345 479 . 758 473 . . . 867 7281 . . . 134 1508 . . . . . . . 2445 . Electromagnetic 3719 | . . . . . . . . . 284 . . . . . . . 416 . . . . 125 . . . . 43 1369 273 443 766 Impact 73 | . . . . . . . . 73 . . . . . . . . . . . . . . . . . . . . . . . Slashing 56 | . . . . . . . . . . . . . . . . . . . 56 . . . . . . . . . . . . Piercing 1860 | . . . . . . . . . . . . . . . . . . . . . . 11 6 . 505 1267 71 . . . . Entropic 1821 | . . . . . . . . . . . . . . . . . . . . . 283 1538 . . . . . . . . . Highest Corruption 46 | . . . 1 2 . . . . . 6 1 4 7 9 9 17 20 20 22 22 4 28 28 29 29 36 . 26 12 22 46 Average Corruption 14 | . . . 1 1 . . . . . 6 1 3 4 8 9 9 5 20 21 22 3 22 28 28 29 34 . 14 6 17 29 Corruption Purged . | . . . . . . . . . . . . . . . . . . . . . . . . . . . . . . . . Corruption Blocked 104 | . . . . . . . . . . . . . . . . . . . . . . . . . . . . . 84 20 . Effects 815 | . . . 10 21 . . . . . . 11 35 50 13 13 29 8 82 50 3 1 53 56 30 18 45 . 68 20 90 109 Message Errors 168 | . . . 1 7 . . . . . . . 9 12 1 3 3 2 12 9 . . 13 14 8 5 11 . 11 6 18 23 Matter Fused 183 | . . . 3 6 . . . . . . 5 6 14 4 3 9 . 24 17 . 1 7 12 7 5 9 . 15 5 10 21 Heat Flow Errors 98 | . . . . 3 . . . . . . 2 8 9 2 2 6 . 11 7 2 . 3 9 1 1 5 . 7 2 13 5 Energy Discharges 93 | . . . 2 3 . . . . . . . 2 2 2 . 4 1 10 8 1 . 6 2 6 6 7 . 11 . 8 12 Parts Rejected 13 | . . . 1 . . . . . . . 1 2 . . 1 1 2 2 . . . 1 . . . . . . . 2 . Data Loss (minor) 84 | . . . 2 1 . . . . . . 1 5 7 2 1 2 . 10 7 . . 7 4 1 1 2 . 11 3 6 11 Data Loss (major) 29 | . . . 1 . . . . . . . . 1 2 1 1 . . 3 1 . . 1 5 2 . 4 . 2 1 2 2 Misfires 34 | . . . . . . . . . . . 2 1 2 . . 2 1 3 . . . 2 3 2 . 2 . 2 . 6 6 Alerts 21 | . . . . 1 . . . . . . . . . 1 . 1 1 3 . . . . 3 . . 1 . 1 . 5 4 Misdirections 13 | . . . . . . . . . . . . . . . . . . . 1 . . 2 1 . . 4 . . . 3 2 Weapon Failures 79 | . . . . . . . . . . . . 1 2 . 2 1 1 4 . . . 11 3 3 . . . 8 3 17 23 Overload Shots 6 | . . . . . . . . . . . . . . . . . . . . . . 6 . . . . . . . . . Overflow Damage 3907 | . . 38 12 13 12 33 . 112 49 . 13 31 63 . . 29 100 . . . 113 316 37 21 32 157 . 169 122 158 2277 Projectiles 1330 | . . 38 12 13 10 21 . 23 35 . . 31 63 . . 18 1 . . . 113 215 37 21 . 98 . 169 122 127 163 Explosions 2374 | . . . . . 2 11 . 16 14 . 13 . . . . 11 99 . . . . 101 . . . . . . . 31 2076 Melee 203 | . . . . . . 1 . 73 . . . . . . . . . . . . . . . . 32 59 . . . . 38 Knockbacks 97 | . 3 3 . . . 1 . 2 6 . 3 7 21 . . 6 11 . 4 . 8 6 2 . . 3 . . . 5 6 Impact 2 | . . . . . . 1 . . . . . . . . . . . . . . . . . . . . . . . . 1 Kinetic 86 | . 3 3 . . . . . 2 6 . 3 6 18 . . 5 11 . 4 . 7 6 2 . . 2 . . . 5 3 Secondary 9 | . . . . . . . . . . . . 1 3 . . 1 . . . . 1 . . . . 1 . . . . 2 Self-Inflicted Damage 1253 | . . . 137 . 70 106 . 96 46 . . . . . . 33 236 . . . . 230 . . . . . . . 57 242 Shots 30 | . . . 3 . 3 4 . 2 2 . . . . . . 1 7 . . . . 4 . . . . . . . 2 2 Rammed 24 | . . . 7 . 3 3 . . . . . 3 2 . . 1 . . . . . 1 . . . . . . . 1 3 Targets Rammed 26 | . . . 8 1 3 3 . . . . . 3 2 . . 1 . . . . . 1 . . . . . . . 1 3 Kicked . | . . . . . . . . . . . . . . . . . . . . . . . . . . . . . . . . Crushed 2 | . . . 1 1 . . . . . . . . . . . . . . . . . . . . . . . . . . . Highest Temperature 565 | 172 261 42 228 307 232 87 110 60 125 . 366 278 418 182 300 484 97 248 313 163 200 565 523 234 107 179 308 387 346 194 416 Average Temperature 89 | 81 88 10 50 88 57 23 32 23 42 . 128 77 138 68 100 90 32 87 124 87 147 122 171 97 57 76 102 106 101 51 97 Received Heat Transfer 9816 | . 225 72 552 19 280 355 57 44 376 . 246 357 558 12 7 333 1296 99 147 . 36 959 203 9 . 72 27 777 36 954 1708 Effects 36 | . 2 . . 1 . . . . . . 3 1 3 . . 4 . . 2 . . . 13 . . . 2 1 2 . 2 Shutdowns 2 | . . . . . . . . . . . . . . . . . . . . . . . 2 . . . . . . . . Energy Bleed 6 | . . . . . . . . . . . 2 1 . . . 1 . . . . . . . . . . 1 . 1 . . Interference 19 | . 2 . . 1 . . . . . . . . 3 . . 3 . . 2 . . . 6 . . . 1 1 . . . Matter Decay 3 | . . . . . . . . . . . 1 . . . . . . . . . . . 2 . . . . . . . . Short Circuit 2 | . . . . . . . . . . . . . . . . . . . . . . . 2 . . . . . . . . Damage (minor) 2 | . . . . . . . . . . . . . . . . . . . . . . . 1 . . . . . 1 . . Damage (major) 2 | . . . . . . . . . . . . . . . . . . . . . . . . . . . . . . . 2 Siege Activations 31 | . . . . . . . . . . . . . . . . . 5 . . . . . . . . . . 8 3 7 8 Total Turns 1174 | . . . . . . . . . . . . . . . . . 134 . . . . . . . . . . 246 125 301 368 Longest Duration 140 | . . . . . . . . . . . . . . . . . 48 . . . . . . . . . . 54 94 116 140 Robots Corrupted 3 | . . . . . . . . . . . . . . . . . . . . . . . . . . . . 3 . . . Combat Hostiles 3 | . . . . . . . . . . . . . . . . . . . . . . . . . . . . 3 . . . Parts Fried 27 | . . . . . . . . . . . . . . . . . 1 . . . . . . . . . . 12 1 4 9 Impact Corruptions 6 | . . . . . . 1 . 1 . . . . 1 . . . . . . . . . . . . 2 . . . . 1 Robots Melted 15 | . . . 1 . . . . . . . 1 . . . . . . . 1 . . . . . . . . 1 2 2 7 Combat Hostiles 14 | . . . . . . . . . . . 1 . . . . . . . 1 . . . . . . . . 1 2 2 7 Parts Melted 91 | . 1 . 10 3 7 1 2 1 . . 1 3 2 . 2 2 . 4 2 . . 7 1 . . . . 6 4 14 18 Heat Transferred 46352 | 668 407 925 5281 1369 2331 407 888 350 250 . 746 1887 1129 129 1887 2276 586 1887 1480 . 50 4153 890 185 . 185 74 3296 2294 5613 4729 Parts Sabotaged 16 | . . . . . . . . . . . . . . . . . 9 . . . . . . . . . . 2 . . 5 Parts Stolen . | . . . . . . . . . . . . . . . . . . . . . . . . . . . . . . . . Parts Stripped . | . . . . . . . . . . . . . . . . . . . . . . . . . . . . . . . . Power Chain Reactions 4 | . . . . . . . . . . . . . . . . . 1 . . . . . . . . . . 1 . 1 1 Missiles Intercepted . | . . . . . . . . . . . . . . . . . . . . . . . . . . . . . . . . Alert | -11 -10 -10 -9 -9 -8 -8 -7 -7 -7 -7 -6 -6 -6 -6 -6 -6 -5 -5 -5 -5 -4 -4 -4 -4 -4 -3 -3 -3 -2 -2 -2 ------- Run | Scr Mat Min Mat Min Mat Sto Fac Low Low Zio Pro Fac Ext Cet Arc Hub Fac Upp Upp War Pro Fac Upp Upp Zhi Pro Res Qua Res Tes Sec Peak Influence 3183 | 15 297 156 1271 718 680 731 351 . . . . 422 626 992 569 1857 2891 . . . . 1426 . . . . 26 813 747 1916 3183 Initial 1100 | . 9 91 40 495 103 287 302 . . . . 42 183 350 316 198 1100 . . . . 31 . . . . . . 456 357 1030 Average 513 | 8 187 69 322 449 431 474 244 . . . . 159 246 610 511 1028 1724 . . . . 605 . . . . 9 234 533 1144 1748 Maximum Alert Level 5 | . 1 . 4 3 2 3 1 . . . . 2 2 3 2 5 5 . . . . 4 . . . . . 3 3 5 5 Low Security (%) 39 | 100 56 100 63 . 9 1 23 . . . . 75 57 . . 8 . . . . . 40 . . . . 100 59 . . . Level 1 17 | . 43 . 3 45 40 29 76 . . . . 22 20 10 7 6 . . . . . 4 . . . . . 26 17 1 . Level 2 21 | . . . 16 52 49 64 . . . . . 1 21 48 92 10 . . . . . 7 . . . . . 4 70 33 . Level 3 5 | . . . 10 2 . 3 . . . . . . . 41 . 30 . . . . . 20 . . . . . 9 11 4 8 Level 4 9 | . . . 6 . . . . . . . . . . . . 27 56 . . . . 26 . . . . . . . 28 49 Level 5 2 | . . . . . . . . . . . . . . . . 8 5 . . . . . . . . . . . . 32 5 High Security 3 | . . . . . . . . . . . . . . . . 7 37 . . . . . . . . . . . . . 36 Max Security . | . . . . . . . . . . . . . . . . . . . . . . . . . . . . . . . . Sterilizations 1 | . . . 1 . . . . . . . . . . . . . . . . . . . . . . . . . . . . Squads Dispatched 164 | . 3 . 12 . 9 9 6 . 1 . 1 6 4 1 . 12 22 . . . . 13 . . . . 5 11 2 14 33 Investigation 33 | . 2 . 7 . 2 5 2 . . . . 2 3 1 . 3 1 . . . . 2 . . . . 3 . . . . Extermination 17 | . . . . . . . 1 . . . . 2 . . . 1 1 . . . . 3 . . . . . 4 . 3 2 Reinforcement 39 | . 1 . 2 . 1 3 3 . . . . 2 1 . . 4 1 . . . . 4 . . . . 2 4 2 6 3 Assault 62 | . . . 3 . . 1 . . 1 . 1 . . . . 2 16 . . . . 3 . . . . . 2 . 5 28 Garrison 13 | . . . . . 6 . . . . . . . . . . 2 3 . . . . 1 . . . . . 1 . . . Intercept . | . . . . . . . . . . . . . . . . . . . . . . . . . . . . . . . . Searches Triggered . | . . . . . . . . . . . . . . . . . . . . . . . . . . . . . . . . Construction Impeded 11 | . . . 1 . 1 1 . . . . . 1 1 . . 1 . . . . . 3 . . . . . . . 2 . Haulers Reinforced 3 | . . . . . . . . . . . . 1 . . . 1 . . . . . . . . . . . . 1 . . Active Scanning Responses . | . . . . . . . . . . . . . . . . . . . . . . . . . . . . . . . . Cargo Convoy Interrupts 1 | . . . . . . . . . . . . . . . . . . . . . . 1 . . . . . . . . . Stealth | -11 -10 -10 -9 -9 -8 -8 -7 -7 -7 -7 -6 -6 -6 -6 -6 -6 -5 -5 -5 -5 -4 -4 -4 -4 -4 -3 -3 -3 -2 -2 -2 --------- Run | Scr Mat Min Mat Min Mat Sto Fac Low Low Zio Pro Fac Ext Cet Arc Hub Fac Upp Upp War Pro Fac Upp Upp Zhi Pro Res Qua Res Tes Sec Distress Signals 40 | . 1 1 3 . 1 1 . . . . . 3 3 2 . 1 1 . . 2 . 4 . . . . 5 . 8 3 1 Communications Jammed 6 | . . . . . . . . . . . . . . . . . . . . . . . . . . . . 4 2 . . Distress Signals 6 | . . . . . . . . . . . . . . . . . . . . . . . . . . . . 4 2 . . Times Spotted 940 | . 25 8 65 7 23 47 16 9 17 . 22 39 40 18 19 40 113 11 11 5 9 76 13 3 . 19 10 46 29 67 133 Peak Tracking Total 22 | . 5 3 9 4 5 7 4 4 8 . 6 5 8 5 2 5 13 4 5 9 2 9 5 2 . 5 5 8 6 10 22 Tactical Retreats 42 | . 2 1 . . 2 3 2 . . . . 6 1 . . 1 5 . 1 . . 3 . . . 2 . 1 3 4 5 Traps | -11 -10 -10 -9 -9 -8 -8 -7 -7 -7 -7 -6 -6 -6 -6 -6 -6 -5 -5 -5 -5 -4 -4 -4 -4 -4 -3 -3 -3 -2 -2 -2 ------- Run | Scr Mat Min Mat Min Mat Sto Fac Low Low Zio Pro Fac Ext Cet Arc Hub Fac Upp Upp War Pro Fac Upp Upp Zhi Pro Res Qua Res Tes Sec Traps Triggered 12 | . . . 2 . . 2 1 . . . . . 5 . . . . 1 . . . . . . . . . 1 . . . Indirectly . | . . . . . . . . . . . . . . . . . . . . . . . . . . . . . . . . Trap Hack Attempts . | . . . . . . . . . . . . . . . . . . . . . . . . . . . . . . . . Triggered . | . . . . . . . . . . . . . . . . . . . . . . . . . . . . . . . . Disarmed . | . . . . . . . . . . . . . . . . . . . . . . . . . . . . . . . . Reprogrammed . | . . . . . . . . . . . . . . . . . . . . . . . . . . . . . . . . Reused . | . . . . . . . . . . . . . . . . . . . . . . . . . . . . . . . . Traps Extracted . | . . . . . . . . . . . . . . . . . . . . . . . . . . . . . . . . Installed 2 | . . . . . . . . . . . . . . . . . . . 2 . . . . . . . . . . . . Triggered 11 | . . . . . . . . . . . . . . . . . . 1 . 10 . . . . . . . . . . . Most Traps Carried 2 | . . . . . . . . . . . . . . . . . . 2 2 . . . . . . . . . . . . Machines | -11 -10 -10 -9 -9 -8 -8 -7 -7 -7 -7 -6 -6 -6 -6 -6 -6 -5 -5 -5 -5 -4 -4 -4 -4 -4 -3 -3 -3 -2 -2 -2 ---------- Run | Scr Mat Min Mat Min Mat Sto Fac Low Low Zio Pro Fac Ext Cet Arc Hub Fac Upp Upp War Pro Fac Upp Upp Zhi Pro Res Qua Res Tes Sec Machines Disabled 116 | . 1 . 11 . 1 6 . 2 . . 1 4 2 1 3 6 4 1 1 . . 18 . . . . 1 12 1 9 31 Max in Single Turn 14 | . 1 . 3 . 1 1 . 1 . . 1 1 1 1 1 1 1 1 1 . . 6 . . . . 1 1 . 2 14 Garrison Access 9 | . . . . . . 1 . . . . . 1 . . . 1 1 . . . . 1 . . . . 1 1 1 . 1 Network Hub 1 | . . . . . . . . . . . . . . . . 1 . . . . . . . . . . . . . . . Machines Sabotaged 1 | . . . . . . . . . . . . . . . . 1 . . . . . . . . . . . . . . . Garrisons Compromised . | . . . . . . . . . . . . . . . . . . . . . . . . . . . . . . . . Overloaded Fab Kills . | . . . . . . . . . . . . . . . . . . . . . . . . . . . . . . . . Hacking | -11 -10 -10 -9 -9 -8 -8 -7 -7 -7 -7 -6 -6 -6 -6 -6 -6 -5 -5 -5 -5 -4 -4 -4 -4 -4 -3 -3 -3 -2 -2 -2 --------- Run | Scr Mat Min Mat Min Mat Sto Fac Low Low Zio Pro Fac Ext Cet Arc Hub Fac Upp Upp War Pro Fac Upp Upp Zhi Pro Res Qua Res Tes Sec Machines Accessed 115 | . 7 . 13 1 3 10 7 . 3 . . 10 12 1 . 5 8 1 1 2 . 5 . . 4 . 5 7 . 5 5 Terminals 70 | . 5 . 10 1 1 7 3 . . . . 5 11 1 . 4 3 . . . . 3 . . . . 3 6 . 2 5 Fabricators 8 | . . . . . . . . . . . . 2 . . . . 1 . . . . 2 . . . . 1 . . 2 . Repair Stations 12 | . . . 2 . . 2 2 . . . . 1 1 . . . 2 . . . . . . . . . . 1 . 1 . Recycling Units 11 | . 2 . 1 . 2 1 2 . . . . 1 . . . . 1 . . . . . . . . . 1 . . . . Scanalyzers . | . . . . . . . . . . . . . . . . . . . . . . . . . . . . . . . . Garrison Access 3 | . . . . . . . . . . . . 1 . . . 1 1 . . . . . . . . . . . . . . Total Hacks 396 | . 27 . 45 3 8 31 20 . 11 . . 25 36 3 . 14 42 1 1 2 . 20 . . 17 . 43 17 . 17 13 Successful 198 | . 13 . 21 3 5 15 8 . 11 . . 8 18 . . 3 20 1 1 2 . 14 . . 17 . 23 7 . 3 5 Failed 196 | . 13 . 23 . 3 16 12 . . . . 17 18 3 . 11 22 . . . . 6 . . . . 20 10 . 14 8 Catastrophic 38 | . 2 . 3 . . 3 2 . . . . 4 2 2 . 5 3 . . . . 3 . . . . 1 5 . 3 . Database Lockouts 2 | . 1 . 1 . . . . . . . . . . . . . . . . . . . . . . . . . . . . Manual 140 | . 20 . 10 5 4 11 7 . . . . 9 12 1 1 10 13 . 1 . . 7 . . . . 21 . . 3 5 Terminals 246 | . 21 . 29 3 3 21 7 . . . . 17 30 3 . 10 19 . . . . 12 . . . . 34 14 . 10 13 Fabricators 27 | . . . . . . . . . . . . 3 . . . . 7 . . . . 8 . . . . 6 . . 3 . Repair Stations 52 | . . . 13 . . 6 6 . . . . 2 6 . . . 12 . . . . . . . . . . 3 . 4 . Recycling Units 32 | . 6 . 3 . 5 4 7 . . . . 2 . . . . 2 . . . . . . . . . 3 . . . . Scanalyzers . | . . . . . . . . . . . . . . . . . . . . . . . . . . . . . . . . Garrison Access 7 | . . . . . . . . . . . . 1 . . . 4 2 . . . . . . . . . . . . . . Terminal Hacks 131 | . 10 . 11 3 2 9 3 . 11 . . 5 13 . . 1 6 1 1 2 . 6 . . 17 . 18 6 . 2 4 Record 18 | . 1 . . . . . . . 9 . . . . . . . . . . 1 . . . . 5 . 1 1 . . . Part Schematic 7 | . . . . . . . . . . . . . . . . . 1 . . . . . . . 4 . 2 . . . . Robot Analysis 19 | . 6 . 2 3 1 1 . . . . . . 2 . . . . . . . . . . . 4 . . . . . . Prototype ID Bank 21 | . 3 . 4 . . 1 1 . . . . . 2 . . . 1 . . . . 2 . . 4 . 2 . . 1 . Open Door 19 | . . . . . . 3 . . 2 . . . 6 . . . . 1 1 1 . . . . . . . 1 . . 4 Level Access Points 1 | . . . . . . . . . . . . . . . . 1 . . . . . . . . . . . . . . . Branch Access Points 5 | . . . . . 1 . . . . . . 1 . . . . 1 . . . . 1 . . . . 1 . . . . Emergency Access Points 2 | . . . . . . . 1 . . . . . . . . . . . . . . . . . . . . . . 1 . Machine Index 1 | . . . . . . . . . . . . . . . . . . . . . . . . . . . 1 . . . . Terminal Index 3 | . . . . . . . . . . . . 1 . . . . 1 . . . . 1 . . . . . . . . . Alert Level 1 | . . . 1 . . . . . . . . . . . . . . . . . . . . . . . . . . . . Unreport Threat 15 | . . . 4 . . 3 . . . . . 1 3 . . . 1 . . . . 2 . . . . . 1 . . . Locate Traps 1 | . . . . . . . . . . . . . . . . . . . . . . . . . . . . 1 . . . Dispatch Records 2 | . . . . . . . . . . . . 1 . . . . . . . . . . . . . . 1 . . . . Maintenance Status 1 | . . . . . . . . . . . . . . . . . . . . . . . . . . . 1 . . . . Security Status 1 | . . . . . . . . . . . . . . . . . . . . . . . . . . . . 1 . . . Surveillance Status 2 | . . . . . . . . . . . . . . . . . . . . . . . . . . . 1 1 . . . Patrol Status 2 | . . . . . . . . . . . . . . . . . . . . . . . . . . . 2 . . . . Transport Status 1 | . . . . . . . . . . . . . . . . . . . . . . . . . . . 1 . . . . Reinforcement Status 1 | . . . . . . . . . . . . . . . . . . . . . . . . . . . 1 . . . . Garrison Status 1 | . . . . . . . . . . . . . . . . . . . . . . . . . . . 1 . . . . Hauler Manifests 3 | . . . . . . 1 1 . . . . 1 . . . . . . . . . . . . . . . . . . . Registered Components 1 | . . . . . . . . . . . . . . . . . . . . . . . . . . . 1 . . . . Registered Prototypes 1 | . . . . . . . . . . . . . . . . . . . . . . . . . . . 1 . . . . Zone Layout 2 | . . . . . . . . . . . . . . . . . 1 . . . . . . . . . 1 . . . . Fabricator Hacks 10 | . . . . . . . . . . . . 2 . . . . 2 . . . . 5 . . . . 1 . . . . Network Status 4 | . . . . . . . . . . . . 2 . . . . 1 . . . . 1 . . . . . . . . . Load Schematic 3 | . . . . . . . . . . . . . . . . . . . . . . 2 . . . . 1 . . . . Build 3 | . . . . . . . . . . . . . . . . . 1 . . . . 2 . . . . . . . . . Repair Station Hacks 26 | . . . 8 . . 4 2 . . . . . 5 . . . 5 . . . . . . . . . . 1 . 1 . Scan Component 17 | . . . 4 . . 2 2 . . . . . 3 . . . 4 . . . . . . . . . . 1 . 1 . Repair 9 | . . . 4 . . 2 . . . . . . 2 . . . 1 . . . . . . . . . . . . . . Recycling Unit Hacks 5 | . 1 . 1 . 1 1 . . . . . . . . . . 1 . . . . . . . . . . . . . . Retrieve Components 5 | . 1 . 1 . 1 1 . . . . . . . . . . 1 . . . . . . . . . . . . . . Scanalyzer . | . . . . . . . . . . . . . . . . . . . . . . . . . . . . . . . . Garrison Access Hacks 2 | . . . . . . . . . . . . 1 . . . . 1 . . . . . . . . . . . . . . Seal Access 2 | . . . . . . . . . . . . 1 . . . . 1 . . . . . . . . . . . . . . Unauthorized Hacks 24 | . 2 . 1 . 2 1 3 . . . . . . . . 2 5 . . . . 3 . . . . 4 . . . 1 Terminals 10 | . . . . . . . 1 . . . . . . . . 2 3 . . . . . . . . . 3 . . . 1 Track 2 | . . . . . . . . . . . . . . . . . 1 . . . . . . . . . 1 . . . . Assimilate 1 | . . . . . . . . . . . . . . . . . . . . . . . . . . . . . . . 1 Botnet 3 | . . . . . . . 1 . . . . . . . . . 1 . . . . . . . . . 1 . . . . Operators 2 | . . . . . . . . . . . . . . . . . 1 . . . . . . . . . 1 . . . . Sabotage 2 | . . . . . . . . . . . . . . . . 2 . . . . . . . . . . . . . . . Fabricators 6 | . . . . . . . . . . . . . . . . . 2 . . . . 3 . . . . 1 . . . . Fabnet 4 | . . . . . . . . . . . . . . . . . 1 . . . . 2 . . . . 1 . . . . Haulers 2 | . . . . . . . . . . . . . . . . . 1 . . . . 1 . . . . . . . . . Repair Stations . | . . . . . . . . . . . . . . . . . . . . . . . . . . . . . . . . Recycling Units 8 | . 2 . 1 . 2 1 2 . . . . . . . . . . . . . . . . . . . . . . . . Recyclers 1 | . . . . . . . 1 . . . . . . . . . . . . . . . . . . . . . . . . Mask 1 | . . . . . . . 1 . . . . . . . . . . . . . . . . . . . . . . . . Tunnel 6 | . 2 . 1 . 2 1 . . . . . . . . . . . . . . . . . . . . . . . . . Scanalyzers . | . . . . . . . . . . . . . . . . . . . . . . . . . . . . . . . . Garrison Access . | . . . . . . . . . . . . . . . . . . . . . . . . . . . . . . . . Data Cores Recovered 4 | . 1 . . . . . . . . . . . 1 . . . . . . . . 1 . . . . . . . 1 . Used 3 | . 1 . . . . . . . . . . . 1 . . . . . . . . 1 . . . . . . . . . Hacking Detections 87 | . 7 . 12 1 2 7 7 . . . . 9 8 1 . 3 6 . . . . 5 . . . . 5 5 . 5 4 Full Trace Events 23 | . . . 7 1 . 2 2 . . . . 2 3 1 . 1 1 . . . . 2 . . . . 1 . . . . Feedback Events 2 | . . . 1 1 . . . . . . . . . . . . . . . . . . . . . . . . . . . Corruption 2 | . . . 1 1 . . . . . . . . . . . . . . . . . . . . . . . . . . . Feedback Blocked . | . . . . . . . . . . . . . . . . . . . . . . . . . . . . . . . . Robot Schematics Acquired 1 | . . . . . . . . . . . . . . . . . . . . . . . . . . . . . . 1 . Robots Built . | . . . . . . . . . . . . . . . . . . . . . . . . . . . . . . . . Authchips . | . . . . . . . . . . . . . . . . . . . . . . . . . . . . . . . . Time . | . . . . . . . . . . . . . . . . . . . . . . . . . . . . . . . . Total Robot Build Rating . | . . . . . . . . . . . . . . . . . . . . . . . . . . . . . . . . Part Schematics Acquired 8 | . . . . . . . . . . . . . . . . . 1 . . . . . . . 4 . 2 . . 1 . Parts Built 2 | . . . . . . . . . . . . . . . . . 2 . . . . . . . . . . . . . . Authchips . | . . . . . . . . . . . . . . . . . . . . . . . . . . . . . . . . Time 298 | . . . . . . . . . . . . . . . . . 42 . . . . 256 . . . . . . . . . Total Part Build Rating 16 | . . . . . . . . . . . . . . . . . 16 . . . . . . . . . . . . . . Parts Repaired 9 | . . . 4 . . 2 . . . . . . 2 . . . 1 . . . . . . . . . . . . . . Time 397 | . . . 110 . . 76 . . . . . . 161 . . . 50 . . . . . . . . . . . . . . Parts Recycled . | . . . . . . . . . . . . . . . . . . . . . . . . . . . . . . . . Recycled Matter . | . . . . . . . . . . . . . . . . . . . . . . . . . . . . . . . . Retrieved Matter . | . . . . . . . . . . . . . . . . . . . . . . . . . . . . . . . . Retrieved Components 23 | . 10 . . . 1 9 . . . . . . . . . . 3 . . . . . . . . . . . . . . Parts Scanalyzed . | . . . . . . . . . . . . . . . . . . . . . . . . . . . . . . . . Part Schematics Acquired . | . . . . . . . . . . . . . . . . . . . . . . . . . . . . . . . . Parts Damaged . | . . . . . . . . . . . . . . . . . . . . . . . . . . . . . . . . Bothacking | -11 -10 -10 -9 -9 -8 -8 -7 -7 -7 -7 -6 -6 -6 -6 -6 -6 -5 -5 -5 -5 -4 -4 -4 -4 -4 -3 -3 -3 -2 -2 -2 ------------ Run | Scr Mat Min Mat Min Mat Sto Fac Low Low Zio Pro Fac Ext Cet Arc Hub Fac Upp Upp War Pro Fac Upp Upp Zhi Pro Res Qua Res Tes Sec Used RIF Installer . | . . . . . . . . . . . . . . . . . . . . . . . . . . . . . . . . Robots Hacked 11 | . . . . . . . . . . . . . . . . . . . . . . . . . . . . . 6 2 3 Non-combat . | . . . . . . . . . . . . . . . . . . . . . . . . . . . . . . . . Combat 11 | . . . . . . . . . . . . . . . . . . . . . . . . . . . . . 6 2 3 Robot Hacks Applied . | . . . . . . . . . . . . . . . . . . . . . . . . . . . . . . . . Relay Couplers Released 16 | . . . . . . 1 . . . . . . . . . 1 . . . . . 2 . . . . 9 1 1 . 1 Machine Destruction 9 | . . . . . . 1 . . . . . . . . . 1 . . . . . 2 . . . . 2 1 1 . 1 Programmers 7 | . . . . . . . . . . . . . . . . . . . . . . . . . . . 7 . . . . Fabnet Peak Effective % 3 | . . . . . . . . . . . . . . . . . . . . . . . . . . . . . 3 3 3 Autooverrided 11 | . . . . . . . . . . . . . . . . . . . . . . . . . . . . . 6 2 3 Robots Rewired 33 | . . . . . . . . 3 1 . 1 . 24 . . . . 2 . . . . 2 . . . . . . . . Allies Hacked 3 | . . . . . . . . . . . . . . 2 . . . . . . . . . . . . . . 1 . . Hacks Repelled . | . . . . . . . . . . . . . . . . . . . . . . . . . . . . . . . . Allies | -11 -10 -10 -9 -9 -8 -8 -7 -7 -7 -7 -6 -6 -6 -6 -6 -6 -5 -5 -5 -5 -4 -4 -4 -4 -4 -3 -3 -3 -2 -2 -2 -------- Run | Scr Mat Min Mat Min Mat Sto Fac Low Low Zio Pro Fac Ext Cet Arc Hub Fac Upp Upp War Pro Fac Upp Upp Zhi Pro Res Qua Res Tes Sec Total Allies 70 | . . . . . . 10 . 3 1 2 1 . 30 5 . . . 2 . . . 1 2 . . 1 . . 6 2 4 Largest Group 24 | . . . . . . 10 1 3 1 3 3 . 24 24 12 8 1 2 2 . . 1 2 . . 1 . . 1 1 1 Highest-Rated Group 941 | . . . . . . 173 13 82 32 102 102 . 923 941 835 573 96 59 59 . . 137 78 . . 30 . . 69 58 58 Highest-Rated Ally 159 | . . . . . . 29 13 31 32 39 39 . 159 152 146 96 96 30 30 . . 137 48 . . 30 . . 69 58 58 Total Orders 20 | . . . . . . 6 9 . . . . . . . 2 2 1 . . . . . . . . . . . . . . STAY 1 | . . . . . . . . . . . . . . . 1 . . . . . . . . . . . . . . . . FOLLOW 1 | . . . . . . . . . . . . . . . 1 . . . . . . . . . . . . . . . . EXPLORE 18 | . . . . . . 6 9 . . . . . . . . 2 1 . . . . . . . . . . . . . . Ally Attacks 668 | . . . . . . 106 9 32 8 . 31 . 193 128 27 106 . . 6 . . . 2 . . 1 . . 9 3 7 Total Damage 15604 | . . . . . . 1365 112 515 213 . 623 . 4381 2951 743 3127 . . 106 . . . 57 . . . . . 1070 63 278 Kills 111 | . . . . . . 11 . 4 1 . 4 . 28 26 4 28 . . 1 . . . . . . 1 . . 2 . 1 Allies Corrupted 2 | . . . . . . . 1 . . . . . . . . 1 . . . . . . . . . . . . . . . Allies Melted 3 | . . . . . . . . . . . . . . . . . . . 1 1 . . . . . . . . . 1 . Intel | -11 -10 -10 -9 -9 -8 -8 -7 -7 -7 -7 -6 -6 -6 -6 -6 -6 -5 -5 -5 -5 -4 -4 -4 -4 -4 -3 -3 -3 -2 -2 -2 ------- Run | Scr Mat Min Mat Min Mat Sto Fac Low Low Zio Pro Fac Ext Cet Arc Hub Fac Upp Upp War Pro Fac Upp Upp Zhi Pro Res Qua Res Tes Sec Robot Analysis Total 19 | . 6 . 2 3 1 1 . . . . . . 2 . . . . . . . . . . . 4 . . . . . . Derelict Logs Recovered 13 | . . 1 . 1 . . . 1 1 1 1 . . . . . . 2 1 . 1 . 2 1 . . . . . . . Drone Launches 41 | . . . . . . 18 19 . . . . . . . . 2 2 . . . . . . . . . . . . . . Drone Recoveries 21 | . . . . . . 4 17 . . . . . . . . . . . . . . . . . . . . . . . . Exploration | -11 -10 -10 -9 -9 -8 -8 -7 -7 -7 -7 -6 -6 -6 -6 -6 -6 -5 -5 -5 -5 -4 -4 -4 -4 -4 -3 -3 -3 -2 -2 -2 ------------- Run | Scr Mat Min Mat Min Mat Sto Fac Low Low Zio Pro Fac Ext Cet Arc Hub Fac Upp Upp War Pro Fac Upp Upp Zhi Pro Res Qua Res Tes Sec Turns Passed 44883 | 111 1147 1199 3485 1458 1173 2168 888 1082 2165 1903 2268 2422 2394 407 325 717 1193 1858 1031 1416 1245 1571 1157 539 337 835 2167 1597 1283 1622 1720 Spaces Moved 19112 | 35 619 736 1135 563 338 702 433 611 1280 1168 1027 919 764 175 107 333 365 767 378 579 522 519 491 295 193 463 1266 553 604 591 581 Core 28 | . . . . . . . . . . . . . . . . . . . . . . . . . . . . . . . 28 Treads 10226 | . 38 . 1002 563 338 702 12 . . . 525 641 601 175 107 333 365 767 378 408 . 2 205 295 130 . 338 553 604 591 553 Legs 2015 | 35 123 . . . . . . . . . . . 19 . . . . . . 171 522 280 . . 63 463 339 . . . . Wheels 6327 | . 458 736 133 . . . 421 611 1280 1168 502 278 144 . . . . . . . . 237 286 . . . 73 . . . . Hover 516 | . . . . . . . . . . . . . . . . . . . . . . . . . . . 516 . . . . Flight . | . . . . . . . . . . . . . . . . . . . . . . . . . . . . . . . . Fastest Speed 50 | 120 100 140 140 243 243 243 160 160 160 160 160 123 160 160 160 160 160 168 246 166 185 112 163 163 116 116 92 161 157 149 50 Average Speed 186 | 120 145 145 233 243 243 249 164 160 160 160 202 210 227 206 160 160 165 225 247 232 185 184 210 163 149 134 154 165 163 156 152 Slowest Speed 560 | 120 320 155 243 243 243 250 330 160 160 160 242 242 560 240 160 160 250 250 248 260 186 330 260 164 240 190 275 170 170 161 350 Overloaded Moves . | . . . . . . . . . . . . . . . . . . . . . . . . . . . . . . . . Propulsion Burnouts . | . . . . . . . . . . . . . . . . . . . . . . . . . . . . . . . . Robots Hopped 3 | . . . . . . . . . . . 3 . . . . . . . . . . . . . . . . . . . . Cave-ins Triggered 7 | . . . . . . . . . . . . 1 . . . . . . . . . . . . . . . . . . 6 Teleports 1 | . . . . . . . . . . . . . . . . . . . . . . . . . . . . . . . 1 Exploration Rate (%) 63 | 4 78 99 99 90 31 96 40 67 98 87 92 34 87 77 82 43 12 84 61 83 77 18 61 55 61 52 28 87 29 66 43 Regions Visited 31 Branch Regions 22 Pre-discovered Areas 20 | . 2 . 1 1 2 1 . 1 . 5 . . . . . . . 2 . . 1 . 1 . 3 . . . . . . Known Exits Taken 9 | . . . . . 1 . . . . . . 1 . . . 1 1 . . . . 1 . . . 1 1 1 1 . . Unknown Exits Taken 22 | 1 1 1 1 1 . 1 1 1 1 1 1 . 1 1 1 . . 1 1 1 1 . 1 1 1 . . . . 1 . Scrap Searched 24 | . . 1 . 1 . . . 4 . 4 2 . . . . . . 3 1 . 3 . 2 2 . 1 . . . . . Spaces Dug 204 | . . . 26 . 11 . . 1 . . 21 10 . 1 . 9 9 . 2 . 1 33 . . . 1 6 21 14 5 33 Terrain Destroyed 2042 | . . . 205 3 139 53 . 67 24 . 129 120 15 2 2 59 272 9 17 . 68 196 18 9 . 6 7 48 58 249 267 Melee 17 | . . . . . . . . 1 . . . 5 . 1 . 6 . . 2 . . . . . . 1 . . . . 1 Projectile 684 | . . . 22 3 4 2 . 5 8 . 28 35 15 1 2 14 63 9 15 . 33 109 18 9 . 5 7 48 58 83 88 AOE 1340 | . . . 183 . 135 51 . 61 16 . 100 80 . . . 39 209 . . . 35 87 . . . . . . . 166 178 Terrain Rammed . | . . . . . . . . . . . . . . . . . . . . . . . . . . . . . . . . Walls Destroyed . | . . . . . . . . . . . . . . . . . . . . . . . . . . . . . . . . Machines Disabled . | . . . . . . . . . . . . . . . . . . . . . . . . . . . . . . . . Actions | -11 -10 -10 -9 -9 -8 -8 -7 -7 -7 -7 -6 -6 -6 -6 -6 -6 -5 -5 -5 -5 -4 -4 -4 -4 -4 -3 -3 -3 -2 -2 -2 --------- Run | Scr Mat Min Mat Min Mat Sto Fac Low Low Zio Pro Fac Ext Cet Arc Hub Fac Upp Upp War Pro Fac Upp Upp Zhi Pro Res Qua Res Tes Sec Total 25085 | 60 788 793 1736 614 582 1013 567 673 1347 1207 1127 1181 1323 216 186 409 744 847 422 653 735 850 563 330 234 567 1466 966 768 1010 1108 Wait 2190 | . 78 6 346 26 133 162 74 . 15 19 8 40 182 1 29 10 176 19 6 . 144 36 7 22 . 3 23 159 30 195 241 Move 19070 | 34 618 735 1134 562 337 701 432 610 1279 1167 1020 918 763 174 106 332 364 766 377 578 521 518 490 294 192 462 1265 552 603 590 576 Hop 3 | . . . . . . . . . . . 3 . . . . . . . . . . . . . . . . . . . . Pick Up 316 | 2 19 1 32 . 5 12 9 1 3 6 5 15 10 8 2 . 17 11 2 13 6 30 9 3 7 9 30 12 13 10 14 Fast Attach 269 | 1 3 . 9 . 2 7 1 . 2 1 7 19 12 6 4 1 13 9 1 17 4 20 4 . 8 5 43 20 8 26 16 Attach 200 | . . 2 3 . 4 4 2 . 3 2 7 5 2 . . . 16 3 . 3 7 35 9 . 3 15 8 6 8 9 44 Detach 64 | . 1 . 1 . . . 2 . 1 . 1 5 1 . 2 . 1 3 . 2 1 7 1 . 2 1 3 1 3 5 20 Swap 335 | 1 7 6 30 3 16 14 4 8 9 3 6 28 17 3 . 11 36 3 2 4 4 13 4 2 2 5 12 39 12 14 17 Drop 458 | . 13 5 39 2 9 19 11 2 4 9 9 29 21 18 5 1 10 5 3 31 9 13 3 . 12 . 71 31 21 34 19 Fire 1712 | 22 49 38 134 20 73 82 32 20 27 . 48 110 49 3 38 45 111 22 26 5 39 167 30 9 . 24 8 146 70 121 144 Melee 106 | . . . . . . 2 . 3 . . . 9 . 3 . 8 . . 3 . . 10 2 . 8 43 3 . . 5 7 Ram 2 | . . . . . . . . . . . . . . . . . . . . . . 1 . . . . . . . . 1 Kick . | . . . . . . . . . . . . . . . . . . . . . . . . . . . . . . . . Crush 24 | . . . 8 1 3 3 . . . . . 3 2 . . 1 . . . . . . . . . . . . . 1 2 Escape Stasis 32 | . . . . . . . . . . . . . 25 . . . . . . . . . . . . . . . . . 7 Rewire 295 | . . . . . . . . 29 4 . 13 . 239 . . . . 6 . . . . 4 . . . . . . . . Trap 2 | . . . . . . . . . . . . . . . . . . . 2 . . . . . . . . . . . . Miscellaneous 7 | . . . . . . 7 . . . . . . . . . . . . . . . . . . . . . . . . . Route ------- -11/Scrapyard -10/Materials (discovered 3 exits: *Mat x2 / [*Min]) -10/Mines (discovered 2 exits: *Mat x2) -9/Materials (discovered 4 exits: *Mat x3 / *Min) -9/Mines -8/Materials (discovered 3 exits: *Fac / *Sto x2) -8/Storage (discovered 2 exits: *Fac / [*Rec]) -7/Factory (discovered 3 exits: *Fac x2 / [*Low]) -7/Lower Caves -7/Lower Caves (discovered 2 exits: *Fac / [*Zio]) -7/Zion -6/Proximity Caves -6/Factory (discovered 6 exits: *Fac x2 / Low x2 / *Ext x2) -6/Extension (discovered 2 exits: *Fac / *Cet) -6/Cetus (discovered 2 exits: *Fac / *Arc) -6/Archives (discovered 3 exits: *Fac / *Hub x2) -6/Hub_04(d) (discovered 4 exits: *Fac x4) -5/Factory (discovered 3 exits: *Fac / *Upp x2) -5/Upper Caves -5/Upper Caves (discovered 2 exits: *Fac / *War) -5/Warlord -4/Proximity Caves -4/Factory (discovered 4 exits: *Res / *Upp x2 / Arm) -4/Upper Caves -4/Upper Caves -4/Zhirov -3/Proximity Caves -3/Research (discovered 4 exits: *Res x2 / *Qua x2) -3/Quarantine -2/Research -2/Testing (discovered 2 exits: [*Acc] / *Sec) -2/Section 7 History --------- Turn | Location | Event 13 | -11/Scrapyard | Discovered new exit (range 3) 112 | -11/Scrapyard | Entered Materials 310 | -10/Materials | Build established: Mutant 332 | -10/Materials | Destroyed 7 combat bots 345 | -10/Materials | Discovered new exit (range 14) 630 | -10/Materials | Discovered new exit (range 16) 684 | -10/Materials | Central database locked down 1057 | -10/Materials | Discovered new exit (range 8) 1259 | -10/Materials | Entered Mines 1552 | -10/Mines | Discovered new exit (range 10) 1563 | -10/Mines | Discovered new exit (range 11) 1859 | -10/Mines | Learned Materials non-interactive machine intel 1902 | -10/Mines | Received a Rocket Launcher from a helpful Derelict 2458 | -10/Mines | Build established: Scavenger-Mutant 2458 | -10/Mines | Entered Materials 2458 | -9/Materials | Evolved 2 slots: Propulsion x1, Utility x1 2459 | -9/Materials | Loaded intel: 41 non-interactive machine locations 3227 | -9/Materials | Repaired Lgt. Armor Plating 3254 | -9/Materials | Repaired Lgt. Armor Plating 3462 | -9/Materials | Central database locked down 3717 | -9/Materials | Discovered new exit (range 15) 3859 | -9/Materials | Repaired Lgt. Armor Plating 3892 | -9/Materials | Repaired Imp. Ion Engine 4069 | -9/Materials | Build established: Mutant 4607 | -9/Materials | Discovered new exit (range 12) 4812 | -9/Materials | Discovered new exit (range 11) 5258 | -9/Materials | First assault squad dispatched 5408 | -9/Materials | Destroyed 7 combat bots 5449 | -9/Materials | Discovered new exit (range 13) 5740 | -9/Materials | Sterilization system engaged 5740 | -9/Materials | Non-combat units ordered to evacuate 5759 | -9/Materials | Destroyed 8 combat bots 5840 | -9/Materials | Combat units ordered to evacuate 5943 | -9/Materials | Entered Mines 6104 | -9/Mines | Met a Derelict bent on vengeance 6151 | -9/Mines | Discovered new exit (range 10) 6186 | -9/Mines | A weapon hastily lodged in a ceiling crevice suddenly fell to the ground 6220 | -9/Mines | Build established: Scavenger-Mutant 7048 | -9/Mines | Deemed a non-threat by the Exiles lab entrance 7401 | -9/Mines | Entered Materials 7401 | -8/Materials | Evolved 2 slots: Utility x2 7448 | -8/Materials | Garrison activated, responded to threat 7627 | -8/Materials | Identified exit to Storage 7756 | -8/Materials | Garrison activated, responded to threat 8149 | -8/Materials | Discovered new exit (range 12) 8574 | -8/Materials | Entered Storage 8865 | -8/Storage | Used back door to open Recycling access 8865 | -8/Storage | Discovered new exit (range 4) 8889 | -8/Storage | Build established: Mutant 9119 | -8/Storage | Repaired Hrd. Medium Armor Plating 9160 | -8/Storage | Repaired Arm. Treads 9546 | -8/Storage | Discovered new exit (range 5) 9665 | -8/Storage | Destroyed 10 combat bots 9864 | -8/Storage | Assisted by bots powering up and referring to "LRC-V3" 10160 | -8/Storage | Build established: Commander-Mutant 10742 | -8/Storage | Entered Factory 10742 | -7/Factory | Accompanied by 11 allies 10742 | -7/Factory | Evolved 2 slots: Propulsion x1, Weapon x1 10874 | -7/Factory | Discovered new exit (range 52) 11028 | -7/Factory | Build established: Tank 11103 | -7/Factory | Discovered new exit (range 44) 11433 | -7/Factory | Discovered new exit (range 4) 11630 | -7/Factory | Entered Lower Caves 11875 | -7/Lower Caves | Attacked by a delusional Derelict stockpiling Unaware 12142 | -7/Lower Caves | Learned location of Zion (-7) 12168 | -7/Lower Caves | Build established: Mutant 12492 | -7/Lower Caves | Discovered new exit (range 8) 12712 | -7/Lower Caves | Entered another Lower Caves area 12712 | -7/Lower Caves | Accompanied by 1 ally 12800 | -7/Lower Caves | Discovered new exit (range 5) 13118 | -7/Lower Caves | Attracted the attention of an 0b10 outpost 13204 | -7/Lower Caves | Destroyed 9 combat bots 13449 | -7/Lower Caves | Encountered a Warlord checkpoint 13501 | -7/Lower Caves | Build established: Tank 13594 | -7/Lower Caves | Learned Factory trap positions 13627 | -7/Lower Caves | Learned location of 1 exit from Research 13627 | -7/Lower Caves | Learned Factory trap positions 13627 | -7/Lower Caves | Learned Armory emergency access door positions 13627 | -7/Lower Caves | Learned Research terminal intel 13627 | -7/Lower Caves | Learned Armory garrison access intel 14257 | -7/Lower Caves | Discovered new exit (range 12) 14560 | -7/Lower Caves | Build established: Mutant 14877 | -7/Lower Caves | Entered Zion 14877 | -7/Zion | Accompanied by 1 ally 14967 | -7/Zion | Discovered new exit (range 15) 15077 | -7/Zion | Gained Derelict followers 15124 | -7/Zion | System corruption cleaned by Quarantine Array 15148 | -7/Zion | Learned location of Warlord (-5) 15202 | -7/Zion | Learned location of Data Miner (-6) 16477 | -7/Zion | Found Prototype Launcher 16477 | -7/Zion | Identified Gui. Missile Launcher 16772 | -7/Zion | Build established: Tank 16780 | -7/Zion | Entered Proximity Caves 16780 | -6/Proximity Caves | Accompanied by 3 allies 16993 | -6/Proximity Caves | Spotted B-75 Beast 17029 | -6/Proximity Caves | Destroyed B-75 Beast 17281 | -6/Proximity Caves | Attracted the attention of an 0b10 outpost 18366 | -6/Proximity Caves | Build established: Mutant 18419 | -6/Proximity Caves | Learned Factory garrison access intel 18700 | -6/Proximity Caves | Discovered new exit (range 6) 18901 | -6/Proximity Caves | Build established: Tank 19048 | -6/Proximity Caves | Entered Factory 19048 | -6/Factory | Evolved 2 slots: Utility x2 19049 | -6/Factory | Loaded intel: 105 trap records 19050 | -6/Factory | Loaded intel: 3 garrison access locations 19842 | -6/Factory | Build established: Gunner 20044 | -6/Factory | Identified exit to Lower Caves 20044 | -6/Factory | Identified exit to Extension 20134 | -6/Factory | Crushed by falling debris 20341 | -6/Factory | Discovered new exit (range 5) 20486 | -6/Factory | Build established: Tank 20973 | -6/Factory | Discovered new exit (range 4) 21220 | -6/Factory | Spotted B-75 Beast 21257 | -6/Factory | Destroyed B-75 Beast 21470 | -6/Factory | Entered Extension 21719 | -6/Extension | Build established: Scavenger-Tank 22196 | -6/Extension | Rescued A7 22227 | -6/Extension | Rescued a captive Derelict 22316 | -6/Extension | Rescued a captive Derelict 22316 | -6/Extension | Rescued a captive Derelict 22349 | -6/Extension | Build established: Commander-Mutant 22433 | -6/Extension | Rescued a captive Derelict 22489 | -6/Extension | Rescued a captive Derelict 22745 | -6/Extension | Spotted B-75 Beast 22757 | -6/Extension | Destroyed B-75 Beast 22774 | -6/Extension | Spotted B-75 Beast 22777 | -6/Extension | Allies destroyed B-75 Beast 22795 | -6/Extension | Disrupted transfer network 23051 | -6/Extension | Repaired Corrupted Imp. Cooling System 23141 | -6/Extension | Build established: Tank 23152 | -6/Extension | Repaired Broken Imp. Heavy Machine Gun 23283 | -6/Extension | Rescued a captive Derelict 23493 | -6/Extension | Build established: Commander-Tank 23806 | -6/Extension | Discovered new exit (range 10) 23809 | -6/Extension | Discovered new exit (range 6) 23864 | -6/Extension | Entered Cetus 23864 | -6/Cetus | Accompanied by 24 allies (A7) 23869 | -6/Cetus | Acquired a Cetus Manufacturing Module code from A7 23891 | -6/Cetus | Spotted Cetus Guard 23891 | -6/Cetus | Spotted Cetus Guard 23893 | -6/Cetus | Spotted Cetus Guard 23893 | -6/Cetus | Spotted Cetus Guard 23895 | -6/Cetus | Allies destroyed Cetus Guard 23898 | -6/Cetus | Allies destroyed Cetus Guard 23905 | -6/Cetus | Allies destroyed Cetus Guard 23906 | -6/Cetus | Allies destroyed Cetus Guard 24063 | -6/Cetus | Started Cetus Manufacturing Module 24088 | -6/Cetus | Manufactured an Enhanced Grunt 24113 | -6/Cetus | Manufactured an Enhanced Grunt 24115 | -6/Cetus | Discovered new exit (range 15) 24138 | -6/Cetus | Manufactured an Enhanced Grunt 24150 | -6/Cetus | Spotted Cetus Guard 24150 | -6/Cetus | Spotted Cetus Guard 24151 | -6/Cetus | Spotted Cetus Guard 24151 | -6/Cetus | Spotted Cetus Guard 24159 | -6/Cetus | Allies destroyed Cetus Guard 24159 | -6/Cetus | Allies destroyed Cetus Guard 24163 | -6/Cetus | Manufactured an Enhanced Grunt 24167 | -6/Cetus | Allies destroyed Cetus Guard 24168 | -6/Cetus | Discovered new exit (range 16) 24168 | -6/Cetus | Allies destroyed Cetus Guard 24181 | -6/Cetus | Met Revision 17 24188 | -6/Cetus | Manufactured an Enhanced Grunt 24271 | -6/Cetus | Entered Archives 24271 | -6/Archives | Accompanied by 12 allies (A7) 24317 | -6/Archives | Unable to access archive contents 24327 | -6/Archives | Discovered new exit (range 14) 24512 | -6/Archives | Discovered new exit (range 15) 24565 | -6/Archives | Discovered new exit (range 15) 24596 | -6/Archives | Entered Hub_04(d) 24596 | -6/Hub_04(d) | Accompanied by 8 allies 24688 | -6/Hub_04(d) | Identified exit to Factory 24946 | -6/Hub_04(d) | First assault squad dispatched 24958 | -6/Hub_04(d) | System corruption reached 10% 25108 | -6/Hub_04(d) | Core integrity fell below 50% 25167 | -6/Hub_04(d) | Network Hub disabled 25188 | -6/Hub_04(d) | Garrison activated, responded to threat 25262 | -6/Hub_04(d) | High security lockdown imminent 25310 | -6/Hub_04(d) | Spotted Lightning 25313 | -6/Hub_04(d) | Entered Factory 25313 | -5/Factory | Accompanied by 1 ally 25313 | -5/Factory | Evolved 2 slots: Propulsion x2 25314 | -5/Factory | Loaded intel: 88 trap records 25384 | -5/Factory | Repaired Broken Antimatter Cannon 25528 | -5/Factory | Fabricated Quantum Rifle (x2) 25569 | -5/Factory | Identified exit to Upper Caves 25613 | -5/Factory | First assault squad dispatched 25744 | -5/Factory | Discovered new exit (range 14) 25854 | -5/Factory | Garrison activated, responded to threat 26053 | -5/Factory | High security lockdown imminent 26088 | -5/Factory | Destroyed 8 combat bots 26133 | -5/Factory | High security lockdown engaged 26164 | -5/Factory | Build established: Scavenger-Tank 26211 | -5/Factory | Destroyed 9 combat bots 26296 | -5/Factory | Destroyed 9 combat bots 26376 | -5/Factory | System corruption reached 10% 26431 | -5/Factory | Lost 12 parts (1p3n4u4w) 26432 | -5/Factory | Destroyed 11 combat bots 26506 | -5/Factory | Entered Upper Caves 27233 | -5/Upper Caves | Build established: Scavenger-Gunner 27483 | -5/Upper Caves | Learned location of Armory (-4) 27534 | -5/Upper Caves | Attracted the attention of an 0b10 checkpoint 28021 | -5/Upper Caves | Attracted the attention of an 0b10 outpost 28232 | -5/Upper Caves | Discovered new exit (range 13) 28364 | -5/Upper Caves | Entered another Upper Caves area 28364 | -5/Upper Caves | Accompanied by 2 allies 28364 | -5/Upper Caves | Discovered new exit (range 10) 28699 | -5/Upper Caves | Acquired the password to a Derelict Tinkerer's latest research 28714 | -5/Upper Caves | Found Prototype Special Weapon 28740 | -5/Upper Caves | Core integrity fell below 50% 28868 | -5/Upper Caves | Learned 4 Factory zone layouts 29212 | -5/Upper Caves | Discovered new exit (range 7) 29395 | -5/Upper Caves | Entered Warlord 29479 | -5/Warlord | System corruption cleaned by Quarantine Array 29831 | -5/Warlord | Build established: Scavenger-Mutant 30231 | -5/Warlord | Visited the Vortex Lab 30238 | -5/Warlord | Warlord's base attacked by MAIN.C 30241 | -5/Warlord | Found Prototype Energy Gun 30245 | -5/Warlord | Found Prototype Energy Gun 30254 | -5/Warlord | Found Prototype Energy Gun 30259 | -5/Warlord | Found Prototype Energy Gun 30383 | -5/Warlord | Met Warlord 30409 | -5/Warlord | Identified Molecular Deconstructor 30426 | -5/Warlord | Found Prototype Device 30426 | -5/Warlord | Identified System Purifier 30431 | -5/Warlord | Found Prototype Processor 30431 | -5/Warlord | Identified Exp. Core Analyzer 30467 | -5/Warlord | Found Prototype Reactor 30490 | -5/Warlord | Found Prototype Hackware 30588 | -5/Warlord | Warlord forces counterattacked 30673 | -5/Warlord | Found Prototype Ballistic Cannon 30673 | -5/Warlord | Identified Hvy. Autocannon 30684 | -5/Warlord | Spotted B-86 Titan 30741 | -5/Warlord | Spotted Striker 30792 | -5/Warlord | Discovered new exit (range 12) 30811 | -5/Warlord | Entered Proximity Caves 30939 | -4/Proximity Caves | Identified Vortex Chain Reactor 30964 | -4/Proximity Caves | Build established: Scavenger-Gunner 30976 | -4/Proximity Caves | Identified System Mapper 30985 | -4/Proximity Caves | Identified Vortex Rifle (x2) 31018 | -4/Proximity Caves | Identified Vortex Rail (x2) 31508 | -4/Proximity Caves | Spotted B-86 Titan 31597 | -4/Proximity Caves | Destroyed B-86 Titan 31837 | -4/Proximity Caves | Build established: Scavenger-Mutant 31890 | -4/Proximity Caves | Received a Behemoth hack from an annoying Tinkerer 32014 | -4/Proximity Caves | P-70 Sage assimilated allied KE-5HW(c) 32035 | -4/Proximity Caves | Discovered new exit (range 9) 32056 | -4/Proximity Caves | Entered Factory 32056 | -4/Factory | Evolved 2 slots: Power x1, Utility x1 32057 | -4/Factory | Identified exit to Research 32090 | -4/Factory | Identified exit to Upper Caves 32090 | -4/Factory | Identified exit to Armory 32301 | -4/Factory | Spotted B-86 Titan 32444 | -4/Factory | Destroyed B-86 Titan 32814 | -4/Factory | Spotted Striker 32815 | -4/Factory | Cargo convoy interrupted 32837 | -4/Factory | First assault squad dispatched 32843 | -4/Factory | Destroyed Striker 32855 | -4/Factory | Lost 11 parts (1p4n2u4w) 32855 | -4/Factory | System corruption reached 10% 32864 | -4/Factory | Destroyed 13 combat bots 33007 | -4/Factory | Destroyed 13 combat bots 33017 | -4/Factory | Lost 5 parts (3n1u1w) 33035 | -4/Factory | Found Unknown Protection 33035 | -4/Factory | Identified Hvy. Reflective Plating 33038 | -4/Factory | Found Hvy. Reflective Plating 33041 | -4/Factory | Found Hvy. Reflective Plating 33044 | -4/Factory | Found Hvy. Reflective Plating 33067 | -4/Factory | Spotted B-86 Titan 33276 | -4/Factory | Lost 5 parts (3n1u1w) 33559 | -4/Factory | Lost 5 parts (2n2u1w) 33563 | -4/Factory | Garrison activated, responded to threat 33569 | -4/Factory | Core integrity fell below 50% 33627 | -4/Factory | Entered Upper Caves 33652 | -4/Upper Caves | Lost 4 parts (3n1u) 33710 | -4/Upper Caves | Attracted the attention of an 0b10 checkpoint 33803 | -4/Upper Caves | Lost 6 parts (1p2n3u) 34131 | -4/Upper Caves | Spotted B-86 Titan 34514 | -4/Upper Caves | Encountered a Warlord checkpoint 34581 | -4/Upper Caves | Learned 12 Research zone layouts 34698 | -4/Upper Caves | Discovered new exit (range 13) 34722 | -4/Upper Caves | Attracted the attention of an 0b10 outpost 34784 | -4/Upper Caves | Entered another Upper Caves area 34785 | -4/Upper Caves | Encountered a Warlord checkpoint 34802 | -4/Upper Caves | Learned 4 Research zone layouts 34901 | -4/Upper Caves | Attracted the attention of an 0b10 checkpoint 35029 | -4/Upper Caves | Build established: Scavenger-Gunner 35291 | -4/Upper Caves | Discovered new exit (range 7) 35323 | -4/Upper Caves | Entered Zhirov 35323 | -4/Zhirov | Discovered new exit (range 3) 35356 | -4/Zhirov | Met Zhirov 35393 | -4/Zhirov | Learned location of Quarantine (-3) 35393 | -4/Zhirov | Learned location of Command (-1) 35415 | -4/Zhirov | Zhirov requested help retrieving the SGEMP Prototype 35441 | -4/Zhirov | Found Alien Artifact 35441 | -4/Zhirov | Identified Integrated Reactor 35441 | -4/Zhirov | Installed Integrated Reactor, increased core energy generation (+10) 35465 | -4/Zhirov | Found Alien Artifact 35660 | -4/Zhirov | Entered Proximity Caves 35707 | -3/Proximity Caves | System corruption reached 30% 35729 | -3/Proximity Caves | Lost 8 parts (3n2u3w) 35906 | -3/Proximity Caves | Core integrity fell below 20% 35910 | -3/Proximity Caves | Lost 5 parts (1p1n2u1w) 36004 | -3/Proximity Caves | Attracted the attention of an 0b10 checkpoint 36063 | -3/Proximity Caves | Lost 4 parts (1p1n1u1w) 36339 | -3/Proximity Caves | Build established: Scavenger-Mutant 36483 | -3/Proximity Caves | Discovered exit to Research (range 8) 36495 | -3/Proximity Caves | Entered Research 36495 | -3/Research | Evolved 2 slots: Propulsion x2 36496 | -3/Research | Identified exit to Research 36498 | -3/Research | Loaded intel: 24 terminal locations 36670 | -3/Research | Spotted B-86 Titan 36695 | -3/Research | Revision forces began assault on 0b10 36704 | -3/Research | Lost 4 parts (3n1u) 36757 | -3/Research | Met up with Revision 17++ 36772 | -3/Research | Identified exit to Quarantine 37074 | -3/Research | Found Enh. Force Lance 37195 | -3/Research | Research terminal network offline 38662 | -3/Research | Entered Quarantine 38678 | -3/Quarantine | Found Alien Artifact 38704 | -3/Quarantine | Found Alien Artifact 38704 | -3/Quarantine | Identified Phase Redirector 38724 | -3/Quarantine | Cryocooling Duct disabled 38739 | -3/Quarantine | Ambient heat levels rising (+20) 38739 | -3/Quarantine | Non-combat units ordered to evacuate 38873 | -3/Quarantine | Found Alien Artifact 38873 | -3/Quarantine | Identified Phase Armor 39262 | -3/Quarantine | System corruption reached 10% 39264 | -3/Quarantine | Spotted Alpha 7 39274 | -3/Quarantine | Destroyed Alpha 7 39287 | -3/Quarantine | Found Corrupted Prototype Ballistic Gun 39310 | -3/Quarantine | Found Alien Launcher 39411 | -3/Quarantine | Found Alien Impact Weapon 39411 | -3/Quarantine | Identified Core Stripper 39483 | -3/Quarantine | Found Alien Artifact 39522 | -3/Quarantine | Found Alien Energy Cannon 39522 | -3/Quarantine | Identified Core Cannon 40059 | -3/Quarantine | Discovered exit to Research (range 11) 40143 | -3/Quarantine | Destroyed 8 combat bots 40162 | -3/Quarantine | First assault squad dispatched 40224 | -3/Quarantine | Build established: Scavenger-Tank 40259 | -3/Quarantine | Entered Research 40259 | -2/Research | Warlord forces began assault on 0b10 40259 | -2/Research | Evolved 2 slots: Utility x1, Weapon x1 40347 | -2/Research | Local machine network offline 40390 | -2/Research | Spotted B-90 Cyclops 40713 | -2/Research | Build established: Scavenger-Mutant 40715 | -2/Research | Borebot progress halted 40727 | -2/Research | Met up with Warlord 40836 | -2/Research | Borebot progress halted 40867 | -2/Research | Spotted Striker 40870 | -2/Research | Spotted Executioner 40887 | -2/Research | Destroyed Executioner 40915 | -2/Research | Found Exp. Core Analyzer 41020 | -2/Research | Spotted Striker 41028 | -2/Research | Destroyed Striker 41222 | -2/Research | Spotted Striker 41238 | -2/Research | Spotted Striker 41243 | -2/Research | Destroyed Striker 41263 | -2/Research | Destroyed Striker 41273 | -2/Research | Destroyed Executioner 41296 | -2/Research | Spotted Striker 41301 | -2/Research | Discovered new exit (range 15) 41304 | -2/Research | System corruption reached 10% 41310 | -2/Research | Destroyed Striker 41337 | -2/Research | Lost 3 parts (2n1w) 41341 | -2/Research | Destroyed 9 combat bots 41367 | -2/Research | Identified exit to Testing 41464 | -2/Research | Found Prototype Device 41464 | -2/Research | Identified Beam Splitter 41542 | -2/Research | Entered Testing 41578 | -2/Testing | Found Prototype Protection 41584 | -2/Testing | Found Prototype Protection 41584 | -2/Testing | Identified Hvy. Regenerative Plating 41767 | -2/Testing | Found Prototype Processor 41767 | -2/Testing | Identified Spectral Analyzer 41824 | -2/Testing | Identified SHELL Armor 41834 | -2/Testing | Spotted Striker 41837 | -2/Testing | Spotted Striker 41852 | -2/Testing | Found Prototype Ballistic Gun 41871 | -2/Testing | Destroyed Striker 41875 | -2/Testing | Spotted Alpha 7 41879 | -2/Testing | Destroyed Striker 41894 | -2/Testing | Destroyed Alpha 7 41920 | -2/Testing | Found Prototype Ballistic Gun 41939 | -2/Testing | Stole the SGEMP Prototype 42083 | -2/Testing | First assault squad dispatched 42152 | -2/Testing | Destroyed 10 combat bots 42158 | -2/Testing | Build established: Gunner 42253 | -2/Testing | Destroyed 12 combat bots 42284 | -2/Testing | Discovered new exit (range 11) 42451 | -2/Testing | Scanned by Researcher 42700 | -2/Testing | Identified Multirail (x2) 42764 | -2/Testing | Destroyed 7 combat bots 42980 | -2/Testing | Spotted Fortress 43003 | -2/Testing | Destroyed Fortress 43010 | -2/Testing | Found Prototype Device 43010 | -2/Testing | Identified Exp. Force Field 43017 | -2/Testing | Found Prototype Device 43017 | -2/Testing | Identified Thermal Barrier 43020 | -2/Testing | Found Unknown Device 43020 | -2/Testing | Identified Antimissile System 43024 | -2/Testing | Found Prototype Device 43024 | -2/Testing | Identified Exp. EM Disruption Field 43031 | -2/Testing | Found Vortex Chain Reactor 43127 | -2/Testing | Build established: Tank 43158 | -2/Testing | Discovered new exit (range 5) 43164 | -2/Testing | Entered Section 7 43414 | -2/Section 7 | First assault squad dispatched 43609 | -2/Section 7 | Destroyed 14 combat bots 43822 | -2/Section 7 | Spotted Executioner 43836 | -2/Section 7 | Spotted Executioner 43845 | -2/Section 7 | Destroyed Executioner 43846 | -2/Section 7 | Core integrity fell below 50% 43858 | -2/Section 7 | Destroyed Executioner 43872 | -2/Section 7 | Found Alien Artifact 44034 | -2/Section 7 | System corruption reached 30% 44102 | -2/Section 7 | Destroyed 9 combat bots 44179 | -2/Section 7 | Spotted B-99 Colossus 44249 | -2/Section 7 | High security lockdown imminent 44249 | -2/Section 7 | Destroyed B-99 Colossus 44262 | -2/Section 7 | Identified Hyp. Multirail 44263 | -2/Section 7 | Scanned by Researcher 44294 | -2/Section 7 | Destroyed 8 combat bots 44320 | -2/Section 7 | Found Alien Artifact 44320 | -2/Section 7 | Identified Integrity Redistributor 44320 | -2/Section 7 | Used Integrity Redistributor, redistributed integrity to core (+474) 44323 | -2/Section 7 | Found Integrity Redistributor 44329 | -2/Section 7 | High security lockdown engaged 44389 | -2/Section 7 | Found Alien Artifact 44389 | -2/Section 7 | Identified LRC Storage 44389 | -2/Section 7 | Installed LRC Storage, increased inventory capacity (+2) 44400 | -2/Section 7 | Found LRC Storage 44400 | -2/Section 7 | Installed LRC Storage, increased inventory capacity (+2) 44491 | -2/Section 7 | Destroyed Executioner 44512 | -2/Section 7 | Destroyed 10 combat bots 44567 | -2/Section 7 | Identified Transdimensional Reconstructor (x2) 44567 | -2/Section 7 | Warped through subspace 44584 | -2/Section 7 | Found Alien Artifact 44614 | -2/Section 7 | Local machine network offline 44633 | -2/Section 7 | Identified Terrabomb 44633 | -2/Section 7 | Used Terrabomb 44634 | -2/Section 7 | Identified Core Reset Matrix 44634 | -2/Section 7 | Identified Subatomic Replicator 44634 | -2/Section 7 | Identified Sigix Terminator 44634 | -2/Section 7 | Used Core Reset Matrix 44638 | -2/Section 7 | Sensed 17 artifacts in vicinity 44658 | -2/Section 7 | Spotted Executioner 44663 | -2/Section 7 | Fired Sigix Terminator 44663 | -2/Section 7 | Destroyed Executioner 44663 | -2/Section 7 | Destroyed Executioner 44681 | -2/Section 7 | Spotted Alpha 7 44684 | -2/Section 7 | Destroyed 21 combat bots 44709 | -2/Section 7 | Spotted Alpha 7 44711 | -2/Section 7 | Destroyed Alpha 7 44759 | -2/Section 7 | Crushed by falling debris 44772 | -2/Section 7 | Crushed by falling debris 44782 | -2/Section 7 | Crushed by falling debris 44793 | -2/Section 7 | Crushed by falling debris 44801 | -2/Section 7 | Crushed by falling debris 44803 | -2/Section 7 | Lost 23 parts (3p7n7u6w) 44832 | -2/Section 7 | Crushed by falling debris 44838 | -2/Section 7 | Core integrity fell below 20% 44884 | -2/Section 7 | Destroyed by Alpha 7 with Backup Laser VII Last Messages --------------- 44847_ Acquired 7 matter. 44848_ System corrupted: IFF burst signal emitted. 44860_ The unstable cave ceiling collapses. 44866_ Beam penetrates Alpha 7. 44866_ Alpha 7 suffers critical hit (Destroy). 44866_ Destroyed Prototype Leg. 44868_ Overheating: Core Cannon damaged (-248). 44868_ Overheating: Vortex Chain Reactor damaged (-21). 44869_ BUW 9=%TP : I=,CLUHNAMGC3PGIW/W 44869_ Vortex Chain Reactor destroyed. 44871_ Sigix Exoskeleton lights up in response to your presence. 44875_ Beam penetrates Suspension Chamber. 44875_ Suspension Chamber breached. 44875_ Beam penetrates Suspension Chamber. 44875_ Beam penetrates Machine. Sigix Exoskeleton opens, ready for integration override sequence. Sigix Exoskeleton opens, ready for integration override sequence. 44884_ System corrupted: Core Cannon failed to cycle. Map ----- +----------------------------------------------------+ | ????????""? ?" ????????????????????????????????? | | ??????? ? ? ???????" ?????????????????????? | | ?????? " ? ?""" ? ?????????????????? | | ?????? " ???????????????? | | ?????? " " ?????????????? | | ????? " ?????????????? | | ???? ??????????????? | | ???? ??????????????? | | ????? ???????????????? | | ????? ? ????????????????? | | ?????? ???? """????????????????? | | ???????"""" "[% ????? ""?????????????????? | | ?????????"" "!!"?????? "??????????????????? | | ??????????##==#????####/7/####?????????????????? | | ??????????##########""" """#######???????????? | | ??????????## # " " ?????????? | | ??????????#!########" " """##????????????????? | | ###########[###????#""" """#?????????????????? | | # # #????#""" """#?????????????????? | | ###############????#""" """#?????????????????? | | ???????????????????#"" ""#?????????????????? | | ???????????????????#" "#?????????????????? | | ???????????????????#" "#?????????????????? | | ???????????????????#" "#?????????????????? | | ???????????????????#"" T"#?????????????????? | | ???????????????????#" ""@ "#?????????????????? | | ???????????????????#" "X "#?????????????????? | | ???????????????????#" "# "#?????????????????? | | ???????????????????#"""### ""#?????????????????? | | ???????????????????####???;###?????????????????? | | ?????????????????????????? #???????????????????? | | ?????????????????????????? #???????????????????? | | ?????????????????????????? ???????????????????? | | ??????????????????????????# ???????????????????? | | ??????????????????????????? ???????????????????? | | ??????????????????????????? ???????????????????? | | ??????????????????????????? ??????????????????? | | ???????????????????????????# ??????????????????? | | ???????????????????????????? ??????????????????? | | ????????????????????????????#??????????????????? | | ???????????????????????????????????????????????? | | ???????????????????????????????????????????????? | | ???????????????????????????????????????????????? | | ???????????????????????????????????????????????? | | ???????????????????????????????????????????????? | | ???????????????????????????????????????????????? | | ???????????????????????????????????????????????? | | ???????????????????????????????????????????????? | | ???????????????????????????????????????????????? | | ???????????????????????????????????????????????? | +----------------------------------------------------+ Best States ------------- Heat Dissipation 139 Coolant Potential 100 Energy Generation 65 Energy Capacity 1200 Matter Stores 300 Matter Capacity 300 Sight Range 20 Robot Scan Range 16 Terrain Scan Density 110 Jamming Range 16 Additional Mass Support 20 Armor Coverage 3000 Resistance: KI 25 Resistance: TH 75 Core Shielding 20 Weapon Cycling 20 Evasion (%) 55 Targeting Accuracy 16 Target Analysis 8 Core Analysis 8 Armor Integrity Analysis 30 Recoil Reduction 14 Particle Charging 25 Offensive Hacking 24 Defensive Hacking 24 Item Schematics ----------------- None Robot Schematics ------------------ None Fabricated ------------ Quantum Rifle | x2 | -5/Factory | Preloaded Alien Tech Used ----------------- Integrated Reactor Phase Redirector Phase Armor Core Stripper Core Cannon Integrity Redistributor LRC Storage Transdimensional Reconstructor Terrabomb Core Reset Matrix Sigix Terminator Achievements -------------- None Challenges ------------ None Game ------ Seed HeatDisposableStick Manual? 0 Play Time 09:36:14 Cumulative 700.0 hours Start 2022.05.28 @ 04:48:53 End 2022.05.28 @ 22:08:36 Sessions 17 Manual Loads 0 Difficulty Rogue Special Mode None Game No. 172 Rogue 140 Adventurer 31 Explorer 1 Win Type - Total 34 Types 25/0/4/4/0/0/1/0/0 Lore% 82 Gallery% 86 Achievement% 72 Wizard Run 0 Options --------- ASCII 0 Keyboard 0 Movement Arrows Keybinds 0 Fullscreen 1 Font 20/Terminus Map View 66x50 Tactical HUD 1 Map Filters NONE Filters NONE Steam 1 RUN: 7f4cef33-50f9-4442-9d19-44f165c22398